Workbook

Sheet Tableau de bord
A1: Meudon | B1: Sekou
C16: Total/Fournisseur | F16: Total jour | I16: CA | M16: Total Factures | N16: Total Ca | O16: Ratios
D17: Facture | G17: Facture | J17: CA_HT | L17: 2025-08 | M17: 2345.88 | N17: 1709.95 | O17: 1.371899763
C18: TransGourmet | D18: 2023.39 | F18: 14-août | G18: 2345.88 | I18: 13-août | J18: 120.9 | L18: 2025-07 | M18: 30917.68 | N18: 104529.18 | O18: 0.2957803744
C19: Charraire | D19: 322.49 | F19: Charraire | G19: 322.49 | I19: 12-août | J19: 103.64 | L19: 2025-06 | M19: 46661.31 | N19: 151467.33 | O19: 0.3080618771
C20: Total général | D20: 2345.88 | F20: TransGourmet | G20: 2023.39 | I20: 11-août | J20: 155.45 | L20: 2025-05 | M20: 30092.89 | N20: 100861.54 | O20: 0.2983584228
F21: Total général | G21: 2345.88 | I21: 10-août | J21: 276.36 | L21: 2025-04 | M21: 42991.24 | N21: 148258.13 | O21: 0.2899755986
I22: 09-août | J22: 120.9 | L22: 2025-03 | M22: 36554.73 | N22: 149009.56 | O22: 0.2453180185
I23: 08-août | J23: 155.45 | L23: 2025-02 | M23: 33593.51 | N23: 99736.72 | O23: 0.3368218847
I24: 07-août | J24: 155.45 | L24: 2025-01 | M24: 46352.82 | N24: 160178.82 | O24: 0.2893817048
I25: 06-août | J25: 69.09 | L25: 2024-12 | M25: 27873.34 | N25: 105083.44 | O25: 0.2652495959
I26: 05-août | J26: 120.9 | L26: 2024-11 | M26: 37881.09 | N26: 136205.14 | O26: 0.2781179183
I27: 04-août | J27: 86.36 | L27: 2024-10 | M27: 38139.7 | N27: 114179.1 | O27: 0.334033987
I28: 03-août | J28: 276.36 | L28: 2024-09 | M28: 45286.5 | N28: 154018.98 | O28: 0.2940319433
I29: 01-août | J29: 69.09 | L29: 2024-08 | M29: 25142.4 | N29: 91246.07 | O29: 0.275545018
I30: Total général | J30: 1709.95 | L30: 2024-07 | M30: 32289.75 | N30: 131559.88 | O30: 0.2454376669
L31: 2024-06 | M31: 46818.17 | N31: 170359.43 | O31: 0.2748199498
L32: 2024-05 | M32: 27656.61 | N32: 97801.05 | O32: 0.2827843873
L33: 2024-04 | M33: 30286.54 | N33: 94034.23 | O33: 0.322079949
L34: 2024-03 | M34: 59616.26 | N34: 110899.77 | O34: 0.5375688336
L35: 2024-02 | M35: 42460.2 | N35: 115613.47 | O35: 0.3672599741

Sheet Scanner (hidden)
A1: Actions | B1: Valeur | C1: Code barre | D1: Réponse
A3: Charge batterie | B3: %%SpecCode15 | C3: =B3 -> %%SpecCode15 | D3: Battery: 100%
A5: Firmware | B5: %%SpecCode39 | C5: =B5 -> %%SpecCode39 | D5: SW:LW-3.18I Feb 17 2022 18:07:13

Sheet Inventaire
M1: Saclay
A2: Fournisseur | B2: Désignations | C2: Réf. | D2: Matériel | E2: Qté | F2: Prix | G2: Total
A3: Abeille/Passion | B3: Miel Jérusalem | C3: 6700 | D3: Non | E3: 2 | F3: 13 | G3: 26
A4: Baisers sucres | B4: Lunch Cerise | C4: 6742 | D4: Non | E4: 2 | F4: 105 | G4: 210
B5: Lunch citron jaune | C5: 6740 | D5: Non | E5: 2 | F5: 77 | G5: 154
B6: Lunch fraise | C6: 6741 | D6: Non | E6: 1 | F6: 88 | G6: 88
B7: Madeleine | C7: 6747 | D7: Non | E7: 1 | F7: 30 | G7: 30
A8: Bon App Tarte | B8: Tarte Rhubarbe 22 Diam | C8: 1035 | D8: Non | E8: 1 | F8: 14 | G8: 14
A9: Cercle vert | B9: Cardamone | C9: 2116 | D9: Non | E9: 1 | F9: 25 | G9: 25
B10: Confiture Fraise 30 Gr | C10: 1329 | D10: Non | E10: 3 | F10: 16 | G10: 48
B11: Farine De Ble T55 | C11: 1049 | D11: Non | E11: 6 | F11: 6 | G11: 36
B12: Fleur d oranger | C12: 2085 | D12: Non | E12: 1 | F12: 4 | G12: 4
B13: Fleur de sel | C13: 3628 | D13: Non | E13: 2 | F13: 6 | G13: 12
B14: Fumet poisson poudre | C14: 2120 | D14: Non | E14: 4 | F14: 8 | G14: 32
B15: Gelatine feuille | C15: 2117 | D15: Non | E15: 1 | F15: 25 | G15: 25
B16: Lentille Corail Bio | C16: 1062 | D16: Non | E16: 1 | F16: 13 | G16: 13
B17: Levure chimique | C17: 2076 | D17: Non | E17: 3 | F17: 9 | G17: 27
B18: Mais cuit | C18: 2722 | D18: Non | E18: 4 | F18: 2 | G18: 8
B19: Nouilles jap 3 kg | C19: 2071 | D19: Non | E19: 2 | F19: 9 | G19: 18
B20: Olive Verte Entieres 5/1 | C20: 1073 | D20: Non | E20: 2 | F20: 7 | G20: 14
B21: Quinoa kg | C21: 2077 | D21: Non | E21: 2 | F21: 6 | G21: 12
B22: Sel fin 5 kg | C22: 2099 | D22: Non | E22: 2 | F22: 6 | G22: 12
B23: Sel guerande kg | C23: 2098 | D23: Non | E23: 2 | F23: 1 | G23: 2
B24: Sesame blanc kg | C24: 2092 | D24: Non | E24: 3 | F24: 6 | G24: 18
B25: Sirop d erable L | C25: 2101 | D25: Non | E25: 2 | F25: 27 | G25: 54
B26: Sucre cassonnade kg | C26: 2112 | D26: Non | E26: 3 | F26: 3 | G26: 9
B27: Sucre glace kg | C27: 2073 | D27: Non | E27: 3 | F27: 3 | G27: 9 | J27: Somme de Total
B28: Tabasco rouge flacon | C28: 1102 | D28: Non | E28: 1 | F28: 3 | G28: 3 | I28: Abeille/Passion | J28: 26
B29: Tomates Concentre 28% 4/4 | C29: 1107 | D29: Non | E29: 2 | F29: 2 | G29: 4 | I29: Baisers sucres | J29: 482
B30: Vinaigre balsamique L | C30: 3630 | D30: Non | E30: 2 | F30: 4 | G30: 8 | I30: Bon App Tarte | J30: 14 | M30: Historique
B31: Vinaigre de riz btl | C31: 2081 | D31: Non | E31: 3 | F31: 3 | G31: 9 | I31: Cercle vert | J31: 2907 | L31: 2025-07-01 | M31: 8658
B32: Bleuet | C32: 6645 | D32: Non | E32: 3 | F32: 19 | G32: 57 | I32: Chassineau | J32: 126 | L32: 2025-06-01 | M32: 10473
B33: Risotto | C33: 6649 | D33: Non | E33: 1 | F33: 4 | G33: 4 | I33: Corbeille à confiture | J33: 325 | L33: 2025-05-01 | M33: 11471.38
B34: Riz basmati sac 5 kg | C34: 2705 | D34: Non | E34: 5 | F34: 17 | G34: 85 | I34: Donna Italia | J34: 290 | L34: 2025-04-01 | M34: 13759.785
B35: Chocolat noir 65 % | C35: 2100 | D35: Non | E35: 2 | F35: 39 | G35: 78 | I35: DS | J35: 180 | L35: 2025-03-01 | M35: 8264.106
B36: Noix De Cajou 1 Kg | C36: 1071 | D36: Non | E36: 3 | F36: 14 | G36: 42 | I36: Fadi | J36: 239 | L36: 2025-02-01 | M36: 8801.22
B37: Raisin blond golden 1 kg | C37: 2708 | D37: Non | E37: 3 | F37: 6 | G37: 18 | I37: Gamme des artisans | J37: 112 | L37: 2025-01-01 | M37: 10764.3017
B38: Raisin noir 1 kg | C38: 2709 | D38: Non | E38: 5 | F38: 7 | G38: 35 | I38: Gamme des Chefs | J38: 414
B39: Herbes de provence 185 gr | C39: 2079 | D39: Non | E39: 2 | F39: 4 | G39: 8 | I39: Jardins d Albert | J39: 55
B40: Fond Brun Lié Boite | C40: 1050 | D40: Non | E40: 2 | F40: 14 | G40: 28 | I40: Jocean | J40: 10
B41: Chapelure dorée | C41: 2715 | D41: Non | E41: 6 | F41: 15 | G41: 90 | I41: Le Delas | J41: 668
B42: Creme de marron | C42: 2717 | D42: Non | E42: 3 | F42: 11 | G42: 33 | I42: Marina sea food | J42: 28
B43: Ketchup pot 34ml room carton 80 pot | C43: 1342 | D43: Non | E43: 1 | F43: 69 | G43: 69 | I43: OC22 | J43: 133
B44: Mayonnaise pot 33 ml room carton 80 pot | C44: 1345 | D44: Non | E44: 1 | F44: 67 | G44: 67 | I44: Patissier Arnaud | J44: 145
B45: Moutarde 33 ml room | C45: 1351 | D45: Non | E45: 1 | F45: 75 | G45: 75 | I45: Romanzini escargot | J45: 270
B46: Miel pot 1 kg | C46: 1348 | D46: Non | E46: 3 | F46: 7 | G46: 21 | I46: Ségafredo | J46: 644
B47: Speculos brisure | C47: 1096 | D47: Non | E47: 7 | F47: 6 | G47: 42 | I47: Surgelés | J47: 1170
B48: Feuillantine chocolat Carton | C48: 6075 | D48: Non | E48: 0 | F48: 17 | G48: 0 | I48: Thé Noir Amour Gamme Bio | J48: 420
B49: Sauce sweet chili | C49: 1093 | D49: Non | E49: 6 | F49: 7 | G49: 42 | I49: Total général | J49: 8658
B50: Huile tournesol bidon 10 l | C50: 6430 | D50: Non | E50: 4 | F50: 19 | G50: 76
B51: Penne Rigate sac 5 kg | C51: 1074 | D51: Non | E51: 3 | F51: 8 | G51: 24
B52: Gros sel | C52: 2097 | D52: Non | E52: 1 | F52: 6 | G52: 6
B53: Arome vanille | C53: 3620 | D53: Non | E53: 3 | F53: 29 | G53: 87
B54: Arome cafe | C54: 2123 | D54: Non | E54: 2 | F54: 25 | G54: 50
B55: Harissa | C55: 6435 | D55: Non | E55: 1 | F55: 1 | G55: 1
B56: Sel de celeri | C56: 6434 | D56: Non | E56: 1 | F56: 1 | G56: 1
B57: Tomate Pelee Concassee 5/1 | C57: 1106 | D57: Non | E57: 2 | F57: 7 | G57: 14
B58: Cornichon 5/1 boite 80+ | C58: 1043 | D58: Non | E58: 4 | F58: 9 | G58: 36
B59: Sucre poudre sac 20 kg | C59: 1098 | D59: Non | E59: 1 | F59: 36 | G59: 36
B60: Daim Sachet | C60: 1335 | D60: Non | E60: 6 | F60: 18 | G60: 108
B61: lasagne 5 kg | C61: 6433 | D61: Non | E61: 0 | F61: 19 | G61: 0
B62: Ebly | C62: 6437 | D62: Non | E62: 1 | F62: 30 | G62: 30
B63: Chapelure panko | C63: 6438 | D63: Non | E63: 1 | F63: 7 | G63: 7
B64: Thon Albacore Naturel 4/4 | C64: 1104 | D64: Non | E64: 3 | F64: 7 | G64: 21
B65: Melange legumes | C65: 1347 | D65: Non | E65: 6 | F65: 8 | G65: 48
B66: Pralines Roses Enrobees P:1Kg | C66: 1079 | D66: Non | E66: 2 | F66: 23 | G66: 46
B67: Cerneaux De Noix Invalides | C67: 1041 | D67: Non | E67: 4 | F67: 12 | G67: 48
B68: Vinaigre Blanc Alcool 10 l | C68: 1110 | D68: Non | E68: 1 | F68: 6 | G68: 6
B69: Oignons frits 1 kg | C69: 3627 | D69: Non | E69: 2 | F69: 10 | G69: 20
B70: Poivre Gris Moulu 1 kg | C70: 1076 | D70: Non | E70: 1 | F70: 17 | G70: 17
B71: Huile D'Olive Extra Vierge B:1L | C71: 1056 | D71: Non | E71: 25 | F71: 9 | G71: 225
B72: tortillas | C72: 6545 | D72: Non | E72: 9 | F72: 23 | G72: 207
B73: Amandes entieres émondée | C73: 1036 | D73: Non | E73: 2 | F73: 19 | G73: 38
B74: Vin Rouge De Table 11° B:10L | C74: 1109 | D74: Non | E74: 1 | F74: 15 | G74: 15
B75: Baking power | C75: 3618 | D75: Non | E75: 1 | F75: 9 | G75: 9
B76: Nappage brillane chocolat | C76: 6575 | D76: Non | E76: 2 | F76: 13 | G76: 26
B77: Curry | C77: 1048 | D77: Non | E77: 4 | F77: 4 | G77: 16
B78: Gousse vanille | C78: 6542 | D78: Non | E78: 0 | F78: 94 | G78: 0
B79: Feuille de riz | C79: 6593 | D79: Non | E79: 1 | F79: 2 | G79: 2
B80: Huile de noix | C80: 6592 | D80: Non | E80: 6 | F80: 17 | G80: 102
B81: Creme cassis dijon | C81: 6598 | D81: Non | E81: 3 | F81: 8 | G81: 24
B82: Couscous moyen | C82: 6602 | D82: Non | E82: 2 | F82: 19 | G82: 38
B83: Haribo marshmallows | C83: 6608 | D83: Non | E83: 1 | F83: 10 | G83: 10
B84: Melange BBQ 105 gr | C84: 6607 | D84: Non | E84: 3 | F84: 5 | G84: 15
B85: Miel room 48 pieces | C85: 6643 | D85: Non | E85: 1 | F85: 36 | G85: 36
B86: Fond volaille | C86: 6653 | D86: Non | E86: 1 | F86: 11 | G86: 11
B87: Feuille nori | C87: 6644 | D87: Non | E87: 1 | F87: 15 | G87: 15
B88: Colombo hot | C88: 6639 | D88: Non | E88: 2 | F88: 4 | G88: 8
B89: Gressins sesame | C89: 6697 | D89: Non | E89: 9 | F89: 3 | G89: 27
B90: Poivre fume | C90: 6704 | D90: Non | E90: 3 | F90: 7 | G90: 21
B91: Poivre malabar | C91: 6703 | D91: Non | E91: 3 | F91: 8 | G91: 24
B92: Chapelure | C92: 6706 | D92: Non | E92: 6 | F92: 3 | G92: 18
B93: Sauce barbecue | C93: 6707 | D93: Non | E93: 3 | F93: 11 | G93: 33
B94: Sauce Piment Sriracha Coriandre 455Ml | C94: 1084 | D94: Non | E94: 7 | F94: 5 | G94: 35
B95: Confiture Peche 30 Gr | C95: 1333 | D95: Non | E95: 2 | F95: 16 | G95: 32
B96: Egraine végétale | C96: 2072 | D96: Non | E96: 1 | F96: 42 | G96: 42
A97: Chassineau | B97: Jambon Sec De Pays Tranche | C97: 1494 | D97: Non | E97: 5 | F97: 12 | G97: 60
B98: Poitrine Fumee Tranchee | C98: 1505 | D98: Non | E98: 2 | F98: 10 | G98: 20
B99: 1/2 Jambon blanc | C99: 6086 | D99: Non | E99: 6 | F99: 3 | G99: 18
B100: Filet De Poulet Ordinaire | C100: 1488 | D100: Non | E100: 2 | F100: 6 | G100: 12
B101: Saucisse De Porc Mini Petit Dej | C101: 1512 | D101: Non | E101: 2 | F101: 8 | G101: 16
A102: Corbeille à confiture | B102: Confiture Abricot 5Kg | C102: 1523 | D102: Non | E102: 1 | F102: 65 | G102: 65
B103: Confiture Fraises 5Kg | C103: 1525 | D103: Non | E103: 2 | F103: 65 | G103: 130
B104: Confiture Framboises 5Kg | C104: 1526 | D104: Non | E104: 2 | F104: 65 | G104: 130
A105: Donna Italia | B105: Pizza Margherita | C105: 6551 | D105: Non | E105: 4 | F105: 2 | G105: 8
B106: Pizza 4 fromages | C106: 6548 | D106: Non | E106: 26 | F106: 5 | G106: 130
B107: Pizza pepperoni | C107: 6552 | D107: Non | E107: 38 | F107: 4 | G107: 152
A108: DS | B108: Haricot verts 2.5 kg | C108: 2727 | D108: Non | E108: 4 | F108: 1 | G108: 4
B109: Petit pois | C109: 6065 | D109: Non | E109: 3 | F109: 2 | G109: 6
B110: Bouchee Camembert | C110: 6422 | D110: Non | E110: 1 | F110: 12 | G110: 12
B111: Beignet a la romaine | C111: 6424 | D111: Non | E111: 1 | F111: 4 | G111: 4
B112: Pomme dauphin | C112: 6628 | D112: Non | E112: 2 | F112: 4 | G112: 8
B113: Glace rose | C113: 6720 | D113: Non | E113: 2 | F113: 16 | G113: 32
B114: Epis mais 1 kg | C114: 6725 | D114: Non | E114: 7 | F114: 10 | G114: 70
B115: Donut chocolat | C115: 6745 | D115: Non | E115: 1 | F115: 22 | G115: 22
B116: Donut fraise | C116: 6746 | D116: Non | E116: 1 | F116: 22 | G116: 22
A117: Fadi | B117: Kebbe Veau 20Pc | C117: 1535 | D117: Non | E117: 1 | F117: 2 | G117: 2
B118: Sumac | C118: 1545 | D118: Non | E118: 4 | F118: 15 | G118: 60
B119: Arancini a la truffe | C119: 6663 | D119: Non | E119: 3 | F119: 29 | G119: 87
B120: Bargajuan 100 pc | C120: 6751 | D120: Non | E120: 300 | F120: 0 | G120: 0
B121: Panise kg | C121: 6743 | D121: Non | E121: 6 | F121: 15 | G121: 90
A122: Gamme des artisans | B122: Poivre Vert frit 1Kg | C122: 6555 | D122: Non | E122: 2 | F122: 56 | G122: 112
A123: Gamme des Chefs | B123: Navette nature | C123: 1654 | D123: Non | E123: 60 | F123: 0 | G123: 0
B124: Pancake Beurre Dia 09 Cm 25 Gr (Cond 80) | C124: 1633 | D124: Non | E124: 2 | F124: 24 | G124: 48
B125: Plaque pain mie mix | C125: 2130 | D125: Non | E125: 2 | F125: 95 | G125: 190
B126: Fraises entieres | C126: 6426 | D126: Non | E126: 5 | F126: 10 | G126: 50
B127: Assortiment macaron Classique 36x10gr | C127: 1590 | D127: Non | E127: 7 | F127: 18 | G127: 126
A128: Jardins d Albert | B128: Oignon grelot | C128: 6072 | D128: Non | E128: 1 | F128: 11 | G128: 11
B129: Epine vinette | C129: 6439 | D129: Non | E129: 4 | F129: 11 | G129: 44
A130: Jocean | B130: Crevette Ent, Cuites Refrig 30/40 | C130: 1678 | D130: Non | E130: 1 | F130: 10 | G130: 10
A131: Le Delas | B131: Agar Agar | C131: 1112 | D131: Non | E131: 1 | F131: 90 | G131: 90
B132: Gingembre Poudre | C132: 1186 | D132: Non | E132: 1 | F132: 9 | G132: 9
B133: Gelatine feuille halal | C133: 1184 | D133: Non | E133: 1 | F133: 29 | G133: 29
B134: Boulgour | C134: 1131 | D134: Non | E134: 13 | F134: 2 | G134: 26
B135: Fondant Extra Blanc 1kg | C135: 1176 | D135: Non | E135: 1 | F135: 9 | G135: 9
B136: Vin blanc 10 l | C136: 1309 | D136: Non | E136: 5 | F136: 12 | G136: 60
B137: Vin Rouge 10 L | C137: 1311 | D137: Non | E137: 1 | F137: 19 | G137: 19
B138: Fond Volaille Lie | C138: 1175 | D138: Non | E138: 2 | F138: 13 | G138: 26
B139: Macaroni | C139: 1216 | D139: Non | E139: 15 | F139: 2 | G139: 30
B140: Escargot | C140: 1166 | D140: Non | E140: 3 | F140: 16 | G140: 48
B141: Pate A Sucre Blanche 1 kg | C141: 1246 | D141: Non | E141: 2 | F141: 23 | G141: 46
B142: Perle du japon | C142: 6066 | D142: Non | E142: 5 | F142: 8 | G142: 40
B143: Cannelle Bâton | C143: 1136 | D143: Non | E143: 1 | F143: 26 | G143: 26
B144: Biscuit Cuillere | C144: 1125 | D144: Non | E144: 5 | F144: 19 | G144: 95
B145: Banana Bonbon | C145: 1122 | D145: Non | E145: 2 | F145: 10 | G145: 20
B146: Farine De Riz | C146: 1168 | D146: Non | E146: 1 | F146: 2 | G146: 2
B147: Vinaigre Cidre | C147: 1314 | D147: Non | E147: 6 | F147: 13 | G147: 78
B148: Vinaigre Xeres | C148: 1318 | D148: Non | E148: 5 | F148: 3 | G148: 15
A149: Marina sea food | B149: Saumon Mi-Fume Norvegien Entier Marine Aneth | C149: 1798 | D149: Non | E149: 1 | F149: 28 | G149: 28
B150: Saku De Thon Albacore Surgele Ultra Basse Temperature | C150: 1796 | D150: Non | E150: 0 | F150: 38 | G150: 0
B151: Samoosa aux legumes | C151: 6546 | D151: Non | E151: 650 | F151: 0 | G151: 0
A152: OC22 | B152: Jus d orange | C152: 6080 | D152: Non | E152: 1 | F152: 25 | G152: 25
B153: Jus de pamplemouse | C153: 6081 | D153: Non | E153: 2 | F153: 18 | G153: 36
B154: Jus de pomme | C154: 6079 | D154: Non | E154: 3 | F154: 24 | G154: 72
A155: Patissier Arnaud | B155: Ston et ecureuil colis de 12 pieces | C155: 1851 | D155: Non | E155: 3 | F155: 29 | G155: 87
B156: Tartelette citron meringuee colis de 12 | C156: 1854 | D156: Non | E156: 2 | F156: 29 | G156: 58
A157: Romanzini escargot | B157: Escargot bourg, au chablis sac de 100 Pieces | C157: 1873 | D157: Non | E157: 3 | F157: 90 | G157: 270
A158: Ségafredo | B158: Sucre Buchette 1000 pc | C158: 1889 | D158: Non | E158: 2 | F158: 16 | G158: 32
B159: Lait Poudre 500Gr | C159: 1886 | D159: Non | E159: 42 | F159: 10 | G159: 420
B160: Chocolat Poudre instantane kg | C160: 1882 | D160: Non | E160: 8 | F160: 10 | G160: 80
B161: Alleanza Rainforest Kg Grain | C161: 1875 | D161: Non | E161: 4 | F161: 28 | G161: 112
A162: Surgelés | B162: Pain Figue | C162: 1989 | D162: Non | E162: 1 | F162: 51 | G162: 51
B163: Brioche Praline | C163: 1913 | D163: Non | E163: 1 | F163: 45 | G163: 45
B164: Crepe | C164: 1936 | D164: Non | E164: 6 | F164: 19 | G164: 114
B165: Cookie Double Chocolat | C165: 1931 | D165: Non | E165: 1 | F165: 32 | G165: 32
B166: Pain Parisiens | C166: 1992 | D166: Non | E166: 6 | F166: 46 | G166: 276
B167: Glace Cafe | C167: 1958 | D167: Non | E167: 1 | F167: 16 | G167: 16
B168: Pain Noix | C168: 1991 | D168: Non | E168: 1 | F168: 83 | G168: 83
B169: Pain Raisin | C169: 1993 | D169: Non | E169: 0 | F169: 57 | G169: 0
B170: Pain Chocolats | C170: 1987 | D170: Non | E170: 1 | F170: 47 | G170: 47
B171: Croissants | C171: 1939 | D171: Non | E171: 4 | F171: 40 | G171: 160
B172: Pain Complet | C172: 1988 | D172: Non | E172: 1 | F172: 31 | G172: 31
B173: Pains Sans Gluten | C173: 1998 | D173: Non | E173: 1 | F173: 32 | G173: 32
B174: Chausson Au Pomme | C174: 1924 | D174: Non | E174: 1 | F174: 105 | G174: 105
B175: Blinis | C175: 1909 | D175: Non | E175: 1 | F175: 32 | G175: 32
B176: Glace Vanille | C176: 1961 | D176: Non | E176: 1 | F176: 16 | G176: 16
B177: Cigare Curry | C177: 1929 | D177: Non | E177: 1 | F177: 28 | G177: 28
B178: Fond Tartelette Sucre 10 Cm | C178: 1955 | D178: Non | E178: 1 | F178: 102 | G178: 102
A179: Thé Noir Amour Gamme Bio | B179: The Vert Chine Au Jasmin Intense Bio Bio | C179: 2056 | D179: Non | E179: 2 | F179: 31 | G179: 62
B180: The Vert 4 Fruits Rouges Intense Bio | C180: 2055 | D180: Non | E180: 1 | F180: 31 | G180: 31
B181: Camomille Bio | C181: 2039 | D181: Non | E181: 0 | F181: 32 | G181: 0
B182: Sig the vert citron bio boite 50 sachets | C182: 6531 | D182: Non | E182: 2 | F182: 33 | G182: 66
B183: Sig infusion tilleul officinal bio boite 50 sachets | C183: 6532 | D183: Non | E183: 2 | F183: 28 | G183: 56
B184: Sig rooibos nature bio boite 50 sachets | C184: 6533 | D184: Non | E184: 2 | F184: 26 | G184: 52
B185: Sig rooibos earl grey bio boite 50 sachets | C185: 6534 | D185: Non | E185: 2 | F185: 31 | G185: 62
B186: infusion verveine bio 50 sachets | C186: 6565 | D186: Non | E186: 2 | F186: 28 | G186: 56
B187: infusion methe poivree bio 50 sachets | C187: 6566 | D187: Non | E187: 1 | F187: 35 | G187: 35
B188: The Noir Royal Ceylan Bio | C188: 2050 | D188: Non | E188: 3 | F188: 0 | G188: 0

Sheet Catalogue
A1: Fournisseurs | B1: Désignations | C1: Réf | D1: Prix | E1: Qté | G1: Meudon | I1: =COUNTA(E2:E693) -> 0
A2: Cafe Richard | B2: Cafe Grains Gourmet | C2: 535 | D2: 13.42
B3: Cappucino En Poudre | C3: 538 | D3: 11.6
B4: Decafeine en poudre | C4: 537 | D4: 10.8
B5: Lait en Poudre | C5: 539 | D5: 8.35
B6: Breakfast Bop Bio | C6: 1111 | D6: 11.4
B7: Camomille Bio | C7: 716 | D7: 11.55
B8: Chocalat en poudre Richard 40 CACAO | C8: 1108 | D8: 9.8
B9: Chocolat en poudre 34% Cacao(Machines auto) | C9: 1107 | D9: 10.8
B10: Chocolat en poudre Richard 40% de cacao. | C10: 536 | D10: 10.8
B11: Confiture Andresy à l ancienne quatre fruits rouges. | C11: 1139 | D11: 9.8
B12: Confiture extra abricot 28g Wilkin & Sons | C12: 1127 | D12: 16.6
B13: Confiture extra cerise-griotte 28g Wilkin & Sons | C13: 1132 | D13: 16.6
B14: Confiture extra myrtille 28g Wilkin & Sons | C14: 1131 | D14: 19.25
B15: Confiture extra orange amère 28g Wilkin & Sons | C15: 1128 | D15: 16.6
B16: Confitures Andresy à l ancienne Abricot | C16: 1136 | D16: 9.8
B17: Confitures Andresy à l ancienne Fraise. | C17: 1138 | D17: 9.8
B18: Confitures Andresy à l ancienne orange amère | C18: 1137 | D18: 9.8
B19: Décafeiné DK Richard 50% Arabica | C19: 1106 | D19: 12.95
B20: Décaféiné lyophilisé bio & équitable 2g. | C20: 1126 | D20: 28.3
B21: Flor fina 80 | C21: 1105 | D21: 26.5
B22: Grand Earl Grey | C22: 1112 | D22: 10.65
B23: Infusion verveine bio | C23: 721 | D23: 12.4
B24: Jardin de Darjeeling bio | C24: 720 | D24: 11.4
B25: Ketchup 28 g en verre. | C25: 1140 | D25: 22.3
B26: Lait Demi-écrémé Régilait | C26: 1109 | D26: 7.2
B27: Mayonnaise 28 g en verre | C27: 20 | D27: 28.45
B28: Miel 28g Wilkin & Sons. | C28: 1134 | D28: 26.4
B29: Miel de Sologne Jamet | C29: 1135 | D29: 13
B30: Moutarde 28 g en verre. | C30: 1141 | D30: 28.45
B31: Rêves enfantins avec fleurs d'hibiscus | C31: 1120 | D31: 11.55
B32: Rooibos aux epices | C32: 715 | D32: 10.65
B33: Stick sucralose Canderel | C33: 1124 | D33: 14.9
B34: Sucre buchette neutre 3 g | C34: 1122 | D34: 9.9
B35: Sucre buchette Richard rouge 3 G | C35: 1121 | D35: 9.9
B36: Sucre buchette roux bio Richard 3 G | C36: 1123 | D36: 10.5
B37: Sucre en morceau Richard 2,5 g. | C37: 1125 | D37: 16.4
B38: Thé rouge Rooibos aux épices 4 sachets | C38: 1115 | D38: 10.65
B39: THE vert a la menth bio | C39: 718 | D39: 247.2
B40: Thé vert à la menthe Bio | C40: 1114 | D40: 11.4
B41: THE VERT AU JASMIN | C41: 1113 | D41: 10.65
B42: The vert au jasmin | C42: 719 | D42: 10.65
B43: Tilleul Bio boite | C43: 717 | D43: 12.4
B44: Verveine Bio | C44: 1116 | D44: 11.55
A45: Cercle vert | B45: Abricot Moelleux | C45: 1035 | D45: 14.15
B46: Agar Agar | C46: 1216 | D46: 90.11
B47: Bombe de graisse | C47: 76 | D47: 9.45
B48: Capres | C48: 1222 | D48: 24.42
B49: Cardamone | C49: 116 | D49: 25.54
B50: Cerise Amarena | C50: 36 | D50: 8.5
B51: Chocolat blanc Zephyr | C51: 468 | D51: 18.18
B52: Confiture Fraises 370 Gr | C52: 204 | D52: 2.88
B53: Confiture framboise pot 1 kg | C53: 217 | D53: 5.23
B54: Confiture Griotte 370 Gr | C54: 318 | D54: 4.85
B55: Confiture peche 350 gr | C55: 495 | D55: 4.19
B56: Cumin | C56: 1218 | D56: 73.75
B57: Farine De Ble T55 | C57: 465 | D57: 6.15
B58: Fleur d oranger | C58: 84 | D58: 4.48
B59: Fleur de sel | C59: 512 | D59: 6.91
B60: Fumet poisson poudre | C60: 119 | D60: 8.7
B61: Garam masala | C61: 513 | D61: 10.3
B62: Gelatine feuille | C62: 112 | D62: 25.04
B63: Gelatine poisson poudre | C63: 509 | D63: 59.45
B64: Gingembre poudre | C64: 1219 | D64: 68.62
B65: Graine de chia | C65: 82 | D65: 13.27
B66: Hibiscus | C66: 115 | D66: 1.61
B67: Huile tournesol | C67: 32 | D67: 3.2
B68: Lasagne Lisca | C68: 34 | D68: 3.08
B69: Lentille Corail Bio | C69: 31 | D69: 13.11
B70: Levure chimique | C70: 77 | D70: 9.45
B71: Mais cuit | C71: 476 | D71: 2.5
B72: Maïzena | C72: 326 | D72: 5.05
B73: Melange 3 Fruits | C73: 427 | D73: 65.61
B74: Melange forestier seche | C74: 38 | D74: 16.21
B75: Menthe douce poudre | C75: 507 | D75: 24.76
B76: Mini baba au rhum | C76: 503 | D76: 49.29
B77: Morilles sechees 400 gr | C77: 107 | D77: 247.1
B78: Nouilles jap 3 kg | C78: 74 | D78: 9.46
B79: Oignon grelot pickels | C79: 510 | D79: 9.2
B80: Olive Noirs Entieres 5/1 | C80: 40 | D80: 7.56
B81: Olive Verte Entieres 5/1 | C81: 41 | D81: 7.3
B82: Paillete feuillantine 2.5 kg | C82: 88 | D82: 17.07
B83: Paprika 800 gr | C83: 94 | D83: 10.69
B84: Petit oignons blanc vinaigre 5/1 | C84: 95 | D84: 8.94
B85: Pignon de pin | C85: 502 | D85: 53.53
B86: Poivre Noir Grains S:1Kg | C86: 471 | D86: 16.29
B87: Poivre tinut | C87: 117 | D87: 12.1
B88: Poudre amande | C88: 517 | D88: 16.8
B89: Poudre cacao kg | C89: 102 | D89: 6.22
B90: Poudre cannelle kg | C90: 89 | D90: 11.44
B91: Poudre coco | C91: 505 | D91: 5.9
B92: Poudre muscade 450 gr | C92: 104 | D92: 34.31
B93: Quinoa kg | C93: 78 | D93: 6.82
B94: Quinoa Sol S:4Kg | C94: 304 | D94: 30.94
B95: Riz rond | C95: 303 | D95: 22.47
B96: Riz thai 5 kg | C96: 72 | D96: 13.98
B97: Sauce Huitre | C97: 42 | D97: 7.21
B98: Sauce soja sale kikoman | C98: 43 | D98: 11.45
B99: Sauce sweet chili | C99: 45 | D99: 7.24
B100: Sauce teriyaki | C100: 44 | D100: 11.06
B101: Savora | C101: 508 | D101: 4.82
B102: Sceau pralin | C102: 110 | D102: 16.42
B103: Sel fin 5 kg | C103: 98 | D103: 6.54
B104: Sel fin carton 2000 pc room | C104: 200 | D104: 7.97
B105: Sel guerande kg | C105: 97 | D105: 1.88
B106: Sesame blanc kg | C106: 91 | D106: 6.64
B107: Sesame noir kg | C107: 90 | D107: 7.13
B108: Sirop d erable L | C108: 99 | D108: 27.36
B109: Sirop de sucre de canne 2 l | C109: 85 | D109: 9.03
B110: Spray Velours Brun 500Ml | C110: 338 | D110: 20.51
B111: Sucre canne liquide | C111: 518 | D111: 9.53
B112: Sucre cassonnade kg | C112: 324 | D112: 3.55
B113: Sucre glace | C113: 1094 | D113: 2.99
B114: Sucre glace kg | C114: 325 | D114: 3.89
B115: Sucre roux buchette | C115: 516 | D115: 33.27
B116: Sweet Chili Sauce 600Ml | C116: 306 | D116: 7.24
B117: Tabasco rouge flacon | C117: 300 | D117: 3.68
B118: Tagliattelles de cecco 500Gr | C118: 71 | D118: 2.61
B119: The vert citron | C119: 525 | D119: 8.17
B120: Thym moulu | C120: 92 | D120: 4.51
B121: Tomate concentre 28% | C121: 469 | D121: 2.19
B122: Tomates Concentre 28% 4/4 | C122: 339 | D122: 2.19
B123: Vanille Bourbon Gousses P:90Gr | C123: 307 | D123: 94.39
B124: Vinaigre balsamique L | C124: 514 | D124: 4.44
B125: Vinaigre de riz btl | C125: 474 | D125: 3.12
B126: Flocon d avoine | C126: 519 | D126: 2.98
B127: Biscuit cuilliere | C127: 100 | D127: 19.7
B128: Confiture Fraise 30 Gr | C128: 203 | D128: 16.5
B129: Bouillon legumes | C129: 1221 | D129: 45
B130: Mars | C130: 1200 | D130: 23.74
B131: FIGUE | C131: 1104 | D131: 3.95
B132: Muesli Bio | C132: 196 | D132: 44.18
B133: Amandes Brut Avec Peau | C133: 323 | D133: 15.3
B134: Amandes effilees | C134: 35 | D134: 16.12
B135: Anis Etoile Badiane | C135: 506 | D135: 74.97
B136: Arôme café | C136: 111 | D136: 25.05
B137: Arôme colorant bleu | C137: 108 | D137: 1.4
B138: Arôme colorant rouge | C138: 87 | D138: 1.31
B139: Arôme colorant vert | C139: 86 | D139: 1.31
B140: Arôme Patrelle | C140: 1220 | D140: 21.2
B141: Arôme pistache | C141: 114 | D141: 18.33
B142: Arôme rose | C142: 83 | D142: 1.82
B143: Arôme vanille | C143: 504 | D143: 29.24
B144: Baking power | C144: 501 | D144: 9.45
B145: Bavarois Framboise | C145: 500 | D145: 32.6
B146: Bicarbonate | C146: 106 | D146: 4.63
B147: Bisque de homard | C147: 1199 | D147: 5.47
B148: Boulgour | C148: 1213 | D148: 11.35
B149: Brisure Oreo | C149: 1211 | D149: 5.05
B150: Bœuf bourguignon | C150: 1212 | D150: 1.95
B151: Cannelle baton | C151: 1215 | D151: 29.99
B152: Cereales Gourmandes Bio | C152: 37 | D152: 27.36
B153: Cerneaux De Noix Invalides | C153: 313 | D153: 8.83
B154: Chapelure new | C154: 1092 | D154: 1.8
B155: Chocolat noir 64 % | C155: 477 | D155: 38.72
B156: Chocopops | C156: 490 | D156: 5.56
B157: Confiture abricot 30G VER C:60 | C157: 317 | D157: 16.5
B158: Confiture Abricot 350 gr | C158: 494 | D158: 3.47
B159: Confiture Abricot Framboise 370 G | C159: 319 | D159: 4.19
B160: Confiture abricot pot 1 kg | C160: 315 | D160: 5.23
B161: Confiture Fraises 5 Kg | C161: 314 | D161: 67.1
B162: Confiture Framboise 30gr 60 pots | C162: 1026 | D162: 55.08
B163: Confiture griotte 30 g carton 60 | C163: 522 | D163: 16.5
B164: Confiture Myrtille 30 gr 60 pot | C164: 524 | D164: 20.9
B165: Confiture Peche 30 Gr *60 Pot | C165: 316 | D165: 16.5
B166: Coquillette 5KG | C166: 528 | D166: 10.6
B167: Cornflakes. Sachet de 500 Gr. | C167: 197 | D167: 3.92
B168: Cornichon 5/1 boite | C168: 312 | D168: 8.47
B169: Creme balsamique 500 gr | C169: 113 | D169: 6.22
B170: Crème de marron | C170: 1223 | D170: 5.18
B171: Creme vinaigre pomme 500gr | C171: 179 | D171: 8.08
B172: Curcuma Moulu S:1Kg | C172: 320 | D172: 9.19
B173: Curry 440G | C173: 302 | D173: 7.94
B174: Dragibus | C174: 1204 | D174: 14
B175: Egraine vegetale 1.750 kg | C175: 75 | D175: 42.99
B176: Epautre kg | C176: 118 | D176: 7.41
B177: Farfalles | C177: 1206 | D177: 18.78
B178: Fond Brun Lie | C178: 299 | D178: 7.71
B179: Fond Brun Veau Lie Prem B:600G | C179: 464 | D179: 22.25
B180: Fond veau liquide | C180: 80 | D180: 25.24
B181: Fraise Tagada | C181: 1203 | D181: 10.37
B182: Fumet Poisson Liquide | C182: 1027 | D182: 25.24
B183: Fumet volaille | C183: 79 | D183: 7.13
B184: Gros sel 5 kg | C184: 96 | D184: 6.73
B185: Huile arachide | C185: 515 | D185: 29.87
B186: Huile D'Olive | C186: 310 | D186: 49.19
B187: Huile D'Olive Extra Vierge | C187: 33 | D187: 5.06
B188: Huile de colza | C188: 309 | D188: 17.71
B189: Huile de noisette | C189: 161 | D189: 8.33
B190: Huile perf palm friteuse | C190: 727 | D190: 35.67
B191: Huile sesame | C191: 103 | D191: 9.79
B192: Jus Pamplemousse | C192: 207 | D192: 11.41
B193: Jus Pomme Bib | C193: 206 | D193: 25
B194: Jus Tropicana | C194: 205 | D194: 25
B195: Lentilles Vertes | C195: 462 | D195: 13.78
B196: Linguine gragnano igp | C196: 725 | D196: 13.45
B197: Linguine Ultra Resist 5.5Kg | C197: 1036 | D197: 27.05
B198: Litchi 4/4 | C198: 1214 | D198: 2.85
B199: Mais Grains 4/4 | C199: 1038 | D199: 1.9
B200: Marshemallow | C200: 1202 | D200: 10.25
... 493 more rows

Sheet Données (hidden)
A1: Type | B1: Date | C1: Montant | D1: Fournisseur | E1: Lieu | F1: Opérateur | G1: Mois | H1: Jour | I1: Année | J1: MoisAffiché
A2: Facture | B2: 2025-08-14 | C2: 322.49 | D2: Charraire | E2: Meudon | F2: Sekou | G2: =TEXT(B2,"mmm-aaaa") -> août-2025 | H2: =TEXT(B2,"jj-mmm") -> 14-août | I2: =YEAR(B2) -> 2025 | J2: =TEXT(B2,"aaaa-mm") -> 2025-08
A3: Facture | B3: 2025-08-14 | C3: 2023.39 | D3: TransGourmet | E3: Meudon | F3: Sekou | G3: août-2025 | H3: 14-août | I3: 2025 | J3: 2025-08
A4: Facture | B4: 2025-07-31 | C4: 125.7 | D4: Chassineau | E4: Meudon | F4: Sekou | G4: juil-2025 | H4: 31-juil | I4: 2025 | J4: 2025-07
A5: Facture | B5: 2025-07-29 | C5: 108.62 | D5: Marina sea food | E5: Meudon | F5: Sekou | G5: juil-2025 | H5: 29-juil | I5: 2025 | J5: 2025-07
A6: Facture | B6: 2025-07-28 | C6: 351.17 | D6: Chassineau | E6: Meudon | F6: Sekou | G6: juil-2025 | H6: 28-juil | I6: 2025 | J6: 2025-07
A7: Facture | B7: 2025-07-25 | C7: 245.69 | D7: Charraire | E7: Meudon | F7: Sekou | G7: juil-2025 | H7: 25-juil | I7: 2025 | J7: 2025-07
A8: Facture | B8: 2025-07-25 | C8: 493.03 | D8: Chassineau | E8: Meudon | F8: Sekou | G8: juil-2025 | H8: 25-juil | I8: 2025 | J8: 2025-07
A9: Facture | B9: 2025-07-25 | C9: 665.01 | D9: La ferme Alexandre | E9: Meudon | F9: Sekou | G9: juil-2025 | H9: 25-juil | I9: 2025 | J9: 2025-07
A10: Facture | B10: 2025-07-25 | C10: 365.76 | D10: Gamme des Chefs | E10: Meudon | F10: Sekou | G10: juil-2025 | H10: 25-juil | I10: 2025 | J10: 2025-07
A11: Facture | B11: 2025-07-24 | C11: 452.5 | D11: Charraire | E11: Meudon | F11: Sekou | G11: juil-2025 | H11: 24-juil | I11: 2025 | J11: 2025-07
A12: Facture | B12: 2025-07-24 | C12: 71.38 | D12: Charraire | E12: Meudon | F12: Sekou | G12: juil-2025 | H12: 24-juil | I12: 2025 | J12: 2025-07
A13: Facture | B13: 2025-07-24 | C13: 360.56 | D13: Chassineau | E13: Meudon | F13: Sekou | G13: juil-2025 | H13: 24-juil | I13: 2025 | J13: 2025-07
A14: Facture | B14: 2025-07-24 | C14: 126.64 | D14: Marina sea food | E14: Meudon | F14: Sekou | G14: juil-2025 | H14: 24-juil | I14: 2025 | J14: 2025-07
A15: Facture | B15: 2025-07-23 | C15: 137.28 | D15: Charraire | E15: Meudon | F15: Sekou | G15: juil-2025 | H15: 23-juil | I15: 2025 | J15: 2025-07
A16: Facture | B16: 2025-07-23 | C16: 165.68 | D16: Chassineau | E16: Meudon | F16: Sekou | G16: juil-2025 | H16: 23-juil | I16: 2025 | J16: 2025-07
A17: Facture | B17: 2025-07-23 | C17: 167.05 | D17: La ferme Alexandre | E17: Meudon | F17: Sekou | G17: juil-2025 | H17: 23-juil | I17: 2025 | J17: 2025-07
A18: Facture | B18: 2025-07-23 | C18: 83.41 | D18: Jocean | E18: Meudon | F18: Sekou | G18: juil-2025 | H18: 23-juil | I18: 2025 | J18: 2025-07
A19: Facture | B19: 2025-07-22 | C19: 259.81 | D19: Charraire | E19: Meudon | F19: Sekou | G19: juil-2025 | H19: 22-juil | I19: 2025 | J19: 2025-07
A20: Facture | B20: 2025-07-22 | C20: 769.3 | D20: Chassineau | E20: Meudon | F20: Sekou | G20: juil-2025 | H20: 22-juil | I20: 2025 | J20: 2025-07
A21: Facture | B21: 2025-07-22 | C21: 678.32 | D21: La ferme Alexandre | E21: Meudon | F21: Sekou | G21: juil-2025 | H21: 22-juil | I21: 2025 | J21: 2025-07
A22: Facture | B22: 2025-07-22 | C22: 243.83 | D22: Gamme des Chefs | E22: Meudon | F22: Sekou | G22: juil-2025 | H22: 22-juil | I22: 2025 | J22: 2025-07
A23: Facture | B23: 2025-07-22 | C23: 159.97 | D23: Jocean | E23: Meudon | F23: Sekou | G23: juil-2025 | H23: 22-juil | I23: 2025 | J23: 2025-07
A24: Facture | B24: 2025-07-19 | C24: 451.01 | D24: Charraire | E24: Meudon | F24: Sekou | G24: juil-2025 | H24: 19-juil | I24: 2025 | J24: 2025-07
A25: Facture | B25: 2025-07-19 | C25: 643.07 | D25: Chassineau | E25: Meudon | F25: Sekou | G25: juil-2025 | H25: 19-juil | I25: 2025 | J25: 2025-07
A26: Facture | B26: 2025-07-19 | C26: 526.12 | D26: La ferme Alexandre | E26: Meudon | F26: Sekou | G26: juil-2025 | H26: 19-juil | I26: 2025 | J26: 2025-07
A27: Facture | B27: 2025-07-19 | C27: 315.29 | D27: Jocean | E27: Meudon | F27: Sekou | G27: juil-2025 | H27: 19-juil | I27: 2025 | J27: 2025-07
A28: Facture | B28: 2025-07-17 | C28: 441.69 | D28: Charraire | E28: Meudon | F28: Sekou | G28: juil-2025 | H28: 17-juil | I28: 2025 | J28: 2025-07
A29: Facture | B29: 2025-07-17 | C29: 137.28 | D29: Charraire | E29: Meudon | F29: Sekou | G29: juil-2025 | H29: 17-juil | I29: 2025 | J29: 2025-07
A30: Facture | B30: 2025-07-17 | C30: 316.61 | D30: Chassineau | E30: Meudon | F30: Sekou | G30: juil-2025 | H30: 17-juil | I30: 2025 | J30: 2025-07
A31: Facture | B31: 2025-07-16 | C31: 78.2 | D31: Charraire | E31: Meudon | F31: Sekou | G31: juil-2025 | H31: 16-juil | I31: 2025 | J31: 2025-07
A32: Facture | B32: 2025-07-16 | C32: 358.18 | D32: Charraire | E32: Meudon | F32: Sekou | G32: juil-2025 | H32: 16-juil | I32: 2025 | J32: 2025-07
A33: Facture | B33: 2025-07-16 | C33: 718.85 | D33: Chassineau | E33: Meudon | F33: Sekou | G33: juil-2025 | H33: 16-juil | I33: 2025 | J33: 2025-07
A34: Facture | B34: 2025-07-16 | C34: 175.04 | D34: La ferme Alexandre | E34: Meudon | F34: Sekou | G34: juil-2025 | H34: 16-juil | I34: 2025 | J34: 2025-07
A35: Facture | B35: 2025-07-16 | C35: 287.05 | D35: Gamme des Chefs | E35: Meudon | F35: Sekou | G35: juil-2025 | H35: 16-juil | I35: 2025 | J35: 2025-07
A36: Facture | B36: 2025-07-16 | C36: 148.78 | D36: Marina sea food | E36: Meudon | F36: Sekou | G36: juil-2025 | H36: 16-juil | I36: 2025 | J36: 2025-07
A37: Facture | B37: 2025-07-15 | C37: 347.51 | D37: La ferme Alexandre | E37: Meudon | F37: Sekou | G37: juil-2025 | H37: 15-juil | I37: 2025 | J37: 2025-07
A38: Facture | B38: 2025-07-15 | C38: 216.24 | D38: Marina sea food | E38: Meudon | F38: Sekou | G38: juil-2025 | H38: 15-juil | I38: 2025 | J38: 2025-07
A39: Facture | B39: 2025-07-15 | C39: 114.37 | D39: Jocean | E39: Meudon | F39: Sekou | G39: juil-2025 | H39: 15-juil | I39: 2025 | J39: 2025-07
A40: Facture | B40: 2025-07-12 | C40: 143.83 | D40: Charraire | E40: Meudon | F40: Sekou | G40: juil-2025 | H40: 12-juil | I40: 2025 | J40: 2025-07
A41: Facture | B41: 2025-07-12 | C41: 396.41 | D41: Chassineau | E41: Meudon | F41: Sekou | G41: juil-2025 | H41: 12-juil | I41: 2025 | J41: 2025-07
A42: Facture | B42: 2025-07-11 | C42: 252.97 | D42: Charraire | E42: Meudon | F42: Sekou | G42: juil-2025 | H42: 11-juil | I42: 2025 | J42: 2025-07
A43: Facture | B43: 2025-07-10 | C43: 313.45 | D43: Charraire | E43: Meudon | F43: Sekou | G43: juil-2025 | H43: 10-juil | I43: 2025 | J43: 2025-07
A44: Facture | B44: 2025-07-10 | C44: 622.81 | D44: Chassineau | E44: Meudon | F44: Sekou | G44: juil-2025 | H44: 10-juil | I44: 2025 | J44: 2025-07
A45: Facture | B45: 2025-07-10 | C45: 449.55 | D45: La ferme Alexandre | E45: Meudon | F45: Sekou | G45: juil-2025 | H45: 10-juil | I45: 2025 | J45: 2025-07
A46: Facture | B46: 2025-07-09 | C46: 400.2 | D46: Gamme des Chefs | E46: Meudon | F46: Sekou | G46: juil-2025 | H46: 09-juil | I46: 2025 | J46: 2025-07
A47: Facture | B47: 2025-07-08 | C47: 522 | D47: Atout Sucre | E47: Meudon | F47: Sekou | G47: juil-2025 | H47: 08-juil | I47: 2025 | J47: 2025-07
A48: Facture | B48: 2025-07-08 | C48: 349.03 | D48: Charraire | E48: Meudon | F48: Sekou | G48: juil-2025 | H48: 08-juil | I48: 2025 | J48: 2025-07
A49: Facture | B49: 2025-07-08 | C49: 68.64 | D49: Charraire | E49: Meudon | F49: Sekou | G49: juil-2025 | H49: 08-juil | I49: 2025 | J49: 2025-07
A50: Facture | B50: 2025-07-08 | C50: 550.19 | D50: Chassineau | E50: Meudon | F50: Sekou | G50: juil-2025 | H50: 08-juil | I50: 2025 | J50: 2025-07
A51: Facture | B51: 2025-07-08 | C51: 288.99 | D51: La ferme Alexandre | E51: Meudon | F51: Sekou | G51: juil-2025 | H51: 08-juil | I51: 2025 | J51: 2025-07
A52: Facture | B52: 2025-07-08 | C52: 90.58 | D52: La ferme Alexandre | E52: Meudon | F52: Sekou | G52: juil-2025 | H52: 08-juil | I52: 2025 | J52: 2025-07
A53: Facture | B53: 2025-07-08 | C53: 388.08 | D53: Gamme des Chefs | E53: Meudon | F53: Sekou | G53: juil-2025 | H53: 08-juil | I53: 2025 | J53: 2025-07
A54: Facture | B54: 2025-07-08 | C54: 444.84 | D54: Jocean | E54: Meudon | F54: Sekou | G54: juil-2025 | H54: 08-juil | I54: 2025 | J54: 2025-07
A55: Facture | B55: 2025-07-07 | C55: 223.32 | D55: Charraire | E55: Meudon | F55: Sekou | G55: juil-2025 | H55: 07-juil | I55: 2025 | J55: 2025-07
A56: Facture | B56: 2025-07-07 | C56: 192.81 | D56: Chassineau | E56: Meudon | F56: Sekou | G56: juil-2025 | H56: 07-juil | I56: 2025 | J56: 2025-07
A57: Facture | B57: 2025-07-07 | C57: 527.57 | D57: Gamme des Chefs | E57: Meudon | F57: Sekou | G57: juil-2025 | H57: 07-juil | I57: 2025 | J57: 2025-07
A58: Facture | B58: 2025-07-05 | C58: 382.53 | D58: Chassineau | E58: Meudon | F58: Sekou | G58: juil-2025 | H58: 05-juil | I58: 2025 | J58: 2025-07
A59: Facture | B59: 2025-07-05 | C59: 352.41 | D59: La ferme Alexandre | E59: Meudon | F59: Sekou | G59: juil-2025 | H59: 05-juil | I59: 2025 | J59: 2025-07
A60: Facture | B60: 2025-07-05 | C60: 314.48 | D60: Marina sea food | E60: Meudon | F60: Sekou | G60: juil-2025 | H60: 05-juil | I60: 2025 | J60: 2025-07
A61: Facture | B61: 2025-07-05 | C61: 146.67 | D61: Jocean | E61: Meudon | F61: Sekou | G61: juil-2025 | H61: 05-juil | I61: 2025 | J61: 2025-07
A62: Facture | B62: 2025-07-04 | C62: 102.96 | D62: Charraire | E62: Meudon | F62: Sekou | G62: juil-2025 | H62: 04-juil | I62: 2025 | J62: 2025-07
A63: Facture | B63: 2025-07-04 | C63: 374.15 | D63: Charraire | E63: Meudon | F63: Sekou | G63: juil-2025 | H63: 04-juil | I63: 2025 | J63: 2025-07
A64: Facture | B64: 2025-07-04 | C64: 544.19 | D64: La ferme Alexandre | E64: Meudon | F64: Sekou | G64: juil-2025 | H64: 04-juil | I64: 2025 | J64: 2025-07
A65: Facture | B65: 2025-07-04 | C65: 460.89 | D65: Chassineau | E65: Meudon | F65: Sekou | G65: juil-2025 | H65: 04-juil | I65: 2025 | J65: 2025-07
A66: Facture | B66: 2025-07-04 | C66: 661.71 | D66: Cercle vert | E66: Meudon | F66: Sekou | G66: =TEXT(B66,"mmm-aaaa") -> juil-2025 | H66: =TEXT(B66,"jj-mmm") -> 04-juil | I66: =YEAR(B66) -> 2025 | J66: =TEXT(B66,"aaaa-mm") -> 2025-07
A67: Facture | B67: 2025-07-03 | C67: 736.83 | D67: Charraire | E67: Meudon | F67: Sekou | G67: juil-2025 | H67: 03-juil | I67: 2025 | J67: 2025-07
A68: Facture | B68: 2025-07-03 | C68: 722.32 | D68: Chassineau | E68: Meudon | F68: Sekou | G68: juil-2025 | H68: 03-juil | I68: 2025 | J68: 2025-07
A69: Facture | B69: 2025-07-03 | C69: 590.21 | D69: La ferme Alexandre | E69: Meudon | F69: Sekou | G69: juil-2025 | H69: 03-juil | I69: 2025 | J69: 2025-07
A70: Facture | B70: 2025-07-03 | C70: 1785.75 | D70: Gamme des Chefs | E70: Meudon | F70: Sekou | G70: juil-2025 | H70: 03-juil | I70: 2025 | J70: 2025-07
A71: Facture | B71: 2025-07-02 | C71: 376.45 | D71: Charraire | E71: Meudon | F71: Sekou | G71: juil-2025 | H71: 02-juil | I71: 2025 | J71: 2025-07
A72: Facture | B72: 2025-07-02 | C72: 589.82 | D72: Chassineau | E72: Meudon | F72: Sekou | G72: juil-2025 | H72: 02-juil | I72: 2025 | J72: 2025-07
A73: Facture | B73: 2025-07-02 | C73: 346.65 | D73: Gamme des Chefs | E73: Meudon | F73: Sekou | G73: juil-2025 | H73: 02-juil | I73: 2025 | J73: 2025-07
A74: Facture | B74: 2025-07-02 | C74: 288.22 | D74: Jocean | E74: Meudon | F74: Sekou | G74: juil-2025 | H74: 02-juil | I74: 2025 | J74: 2025-07
A75: Facture | B75: 2025-07-01 | C75: 696.19 | D75: Charraire | E75: Meudon | F75: Sekou | G75: juil-2025 | H75: 01-juil | I75: 2025 | J75: 2025-07
A76: Facture | B76: 2025-07-01 | C76: 121.96 | D76: Charraire | E76: Meudon | F76: Sekou | G76: juil-2025 | H76: 01-juil | I76: 2025 | J76: 2025-07
A77: Facture | B77: 2025-07-01 | C77: 877.02 | D77: Chassineau | E77: Meudon | F77: Sekou | G77: juil-2025 | H77: 01-juil | I77: 2025 | J77: 2025-07
A78: Facture | B78: 2025-07-01 | C78: 985.68 | D78: La ferme Alexandre | E78: Meudon | F78: Sekou | G78: juil-2025 | H78: 01-juil | I78: 2025 | J78: 2025-07
A79: Facture | B79: 2025-07-01 | C79: 1353.11 | D79: Gamme des Chefs | E79: Meudon | F79: Sekou | G79: juil-2025 | H79: 01-juil | I79: 2025 | J79: 2025-07
A80: Facture | B80: 2025-07-01 | C80: 179.52 | D80: Marina sea food | E80: Meudon | F80: Sekou | G80: juil-2025 | H80: 01-juil | I80: 2025 | J80: 2025-07
A81: Facture | B81: 2025-07-01 | C81: 248.49 | D81: Jocean | E81: Meudon | F81: Sekou | G81: juil-2025 | H81: 01-juil | I81: 2025 | J81: 2025-07
A82: Facture | B82: 2025-07-01 | C82: 148.2 | D82: Atout Sucre | E82: Meudon | F82: Sekou | G82: juil-2025 | H82: 01-juil | I82: 2025 | J82: 2025-07
A83: Facture | B83: 2025-06-28 | C83: 667.31 | D83: Charraire | E83: Meudon | F83: Sekou | G83: juin-2025 | H83: 28-juin | I83: 2025 | J83: 2025-06
A84: Facture | B84: 2025-06-28 | C84: 1037.18 | D84: La ferme Alexandre | E84: Meudon | F84: Sekou | G84: juin-2025 | H84: 28-juin | I84: 2025 | J84: 2025-06
A85: Facture | B85: 2025-06-28 | C85: 179.94 | D85: Marina sea food | E85: Meudon | F85: Sekou | G85: juin-2025 | H85: 28-juin | I85: 2025 | J85: 2025-06
A86: Facture | B86: 2025-06-27 | C86: 537.28 | D86: Chassineau | E86: Meudon | F86: Sekou | G86: juin-2025 | H86: 27-juin | I86: 2025 | J86: 2025-06
A87: Facture | B87: 2025-06-26 | C87: 389.34 | D87: Charraire | E87: Meudon | F87: Sekou | G87: juin-2025 | H87: 26-juin | I87: 2025 | J87: 2025-06
A88: Facture | B88: 2025-06-26 | C88: 733.45 | D88: Chassineau | E88: Meudon | F88: Sekou | G88: juin-2025 | H88: 26-juin | I88: 2025 | J88: 2025-06
A89: Facture | B89: 2025-06-26 | C89: 991.34 | D89: Gamme des Chefs | E89: Meudon | F89: Sekou | G89: juin-2025 | H89: 26-juin | I89: 2025 | J89: 2025-06
A90: Facture | B90: 2025-06-26 | C90: 185.26 | D90: Marina sea food | E90: Meudon | F90: Sekou | G90: juin-2025 | H90: 26-juin | I90: 2025 | J90: 2025-06
A91: Facture | B91: 2025-06-26 | C91: 503.42 | D91: Cercle vert | E91: Meudon | F91: Sekou | G91: juin-2025 | H91: 26-juin | I91: 2025 | J91: 2025-06
A92: Facture | B92: 2025-06-25 | C92: 185.28 | D92: Charraire | E92: Meudon | F92: Sekou | G92: juin-2025 | H92: 25-juin | I92: 2025 | J92: 2025-06
A93: Facture | B93: 2025-06-25 | C93: 360.8 | D93: Charraire | E93: Meudon | F93: Sekou | G93: juin-2025 | H93: 25-juin | I93: 2025 | J93: 2025-06
A94: Facture | B94: 2025-06-25 | C94: 1171.18 | D94: Chassineau | E94: Meudon | F94: Sekou | G94: juin-2025 | H94: 25-juin | I94: 2025 | J94: 2025-06
A95: Facture | B95: 2025-06-25 | C95: 594.19 | D95: La ferme Alexandre | E95: Meudon | F95: Sekou | G95: juin-2025 | H95: 25-juin | I95: 2025 | J95: 2025-06
A96: Facture | B96: 2025-06-25 | C96: 361.38 | D96: Jocean | E96: Meudon | F96: Sekou | G96: juin-2025 | H96: 25-juin | I96: 2025 | J96: 2025-06
A97: Facture | B97: 2025-06-24 | C97: 1340.79 | D97: Gamme des Chefs | E97: Meudon | F97: Sekou | G97: juin-2025 | H97: 24-juin | I97: 2025 | J97: 2025-06
A98: Facture | B98: 2025-06-23 | C98: 460.45 | D98: Charraire | E98: Meudon | F98: Sekou | G98: juin-2025 | H98: 23-juin | I98: 2025 | J98: 2025-06
A99: Facture | B99: 2025-06-21 | C99: 249.2 | D99: Charraire | E99: Meudon | F99: Sekou | G99: juin-2025 | H99: 21-juin | I99: 2025 | J99: 2025-06
A100: Facture | B100: 2025-06-21 | C100: 435.88 | D100: Chassineau | E100: Meudon | F100: Sekou | G100: juin-2025 | H100: 21-juin | I100: 2025 | J100: 2025-06
A101: Facture | B101: 2025-06-21 | C101: 485.1 | D101: La ferme Alexandre | E101: Meudon | F101: Sekou | G101: juin-2025 | H101: 21-juin | I101: 2025 | J101: 2025-06
A102: Facture | B102: 2025-06-21 | C102: 274.24 | D102: Marina sea food | E102: Meudon | F102: Sekou | G102: juin-2025 | H102: 21-juin | I102: 2025 | J102: 2025-06
A103: Facture | B103: 2025-06-21 | C103: 362.8 | D103: Jocean | E103: Meudon | F103: Sekou | G103: juin-2025 | H103: 21-juin | I103: 2025 | J103: 2025-06
A104: Facture | B104: 2025-06-20 | C104: 585.79 | D104: Chassineau | E104: Meudon | F104: Sekou | G104: juin-2025 | H104: 20-juin | I104: 2025 | J104: 2025-06
A105: Facture | B105: 2025-06-20 | C105: 416.07 | D105: La ferme Alexandre | E105: Meudon | F105: Sekou | G105: juin-2025 | H105: 20-juin | I105: 2025 | J105: 2025-06
A106: Facture | B106: 2025-06-20 | C106: 598.38 | D106: Jardin dAlbert | E106: Meudon | F106: Sekou | G106: juin-2025 | H106: 20-juin | I106: 2025 | J106: 2025-06
A107: Facture | B107: 2025-06-19 | C107: 577.7 | D107: Jardin dAlbert | E107: Meudon | F107: Sekou | G107: juin-2025 | H107: 19-juin | I107: 2025 | J107: 2025-06
A108: Facture | B108: 2025-06-19 | C108: 293.08 | D108: Chassineau | E108: Meudon | F108: Sekou | G108: juin-2025 | H108: 19-juin | I108: 2025 | J108: 2025-06
A109: Facture | B109: 2025-06-19 | C109: 897.51 | D109: La ferme Alexandre | E109: Meudon | F109: Sekou | G109: juin-2025 | H109: 19-juin | I109: 2025 | J109: 2025-06
A110: Facture | B110: 2025-06-18 | C110: 197.73 | D110: Chassineau | E110: Meudon | F110: Sekou | G110: juin-2025 | H110: 18-juin | I110: 2025 | J110: 2025-06
A111: Facture | B111: 2025-06-18 | C111: 1041.3 | D111: Gamme des Chefs | E111: Meudon | F111: Sekou | G111: juin-2025 | H111: 18-juin | I111: 2025 | J111: 2025-06
A112: Facture | B112: 2025-06-18 | C112: 162.22 | D112: Jocean | E112: Meudon | F112: Sekou | G112: juin-2025 | H112: 18-juin | I112: 2025 | J112: 2025-06
A113: Facture | B113: 2025-06-17 | C113: 889.16 | D113: Chassineau | E113: Meudon | F113: Sekou | G113: juin-2025 | H113: 17-juin | I113: 2025 | J113: 2025-06
A114: Facture | B114: 2025-06-17 | C114: 185.71 | D114: La ferme Alexandre | E114: Meudon | F114: Sekou | G114: juin-2025 | H114: 17-juin | I114: 2025 | J114: 2025-06
A115: Facture | B115: 2025-06-17 | C115: 259.68 | D115: Marina sea food | E115: Meudon | F115: Sekou | G115: juin-2025 | H115: 17-juin | I115: 2025 | J115: 2025-06
A116: Facture | B116: 2025-06-17 | C116: 138.41 | D116: Jocean | E116: Meudon | F116: Sekou | G116: juin-2025 | H116: 17-juin | I116: 2025 | J116: 2025-06
A117: Facture | B117: 2025-06-17 | C117: 133.3 | D117: Jardin dAlbert | E117: Meudon | F117: Sekou | G117: juin-2025 | H117: 17-juin | I117: 2025 | J117: 2025-06
A118: Facture | B118: 2025-06-16 | C118: 558.66 | D118: Chassineau | E118: Meudon | F118: Sekou | G118: juin-2025 | H118: 16-juin | I118: 2025 | J118: 2025-06
A119: Facture | B119: 2025-06-16 | C119: 365.74 | D119: La ferme Alexandre | E119: Meudon | F119: Sekou | G119: juin-2025 | H119: 16-juin | I119: 2025 | J119: 2025-06
A120: Facture | B120: 2025-06-16 | C120: 414.84 | D120: La ferme Alexandre | E120: Meudon | F120: Sekou | G120: juin-2025 | H120: 16-juin | I120: 2025 | J120: 2025-06
A121: Facture | B121: 2025-06-16 | C121: 235.26 | D121: Jardin dAlbert | E121: Meudon | F121: Sekou | G121: juin-2025 | H121: 16-juin | I121: 2025 | J121: 2025-06
A122: Facture | B122: 2025-06-15 | C122: 163.05 | D122: Jardin dAlbert | E122: Meudon | F122: Sekou | G122: juin-2025 | H122: 15-juin | I122: 2025 | J122: 2025-06
A123: Facture | B123: 2025-06-14 | C123: 343.41 | D123: Jardin dAlbert | E123: Meudon | F123: Sekou | G123: juin-2025 | H123: 14-juin | I123: 2025 | J123: 2025-06
A124: Facture | B124: 2025-06-14 | C124: 243.34 | D124: Chassineau | E124: Meudon | F124: Sekou | G124: juin-2025 | H124: 14-juin | I124: 2025 | J124: 2025-06
A125: Facture | B125: 2025-06-14 | C125: 607.64 | D125: La ferme Alexandre | E125: Meudon | F125: Sekou | G125: juin-2025 | H125: 14-juin | I125: 2025 | J125: 2025-06
A126: Facture | B126: 2025-06-14 | C126: 60.8 | D126: La ferme Alexandre | E126: Meudon | F126: Sekou | G126: juin-2025 | H126: 14-juin | I126: 2025 | J126: 2025-06
A127: Facture | B127: 2025-06-13 | C127: 739.59 | D127: Chassineau | E127: Meudon | F127: Sekou | G127: juin-2025 | H127: 13-juin | I127: 2025 | J127: 2025-06
A128: Facture | B128: 2025-06-13 | C128: 1023.55 | D128: Gamme des Chefs | E128: Meudon | F128: Sekou | G128: juin-2025 | H128: 13-juin | I128: 2025 | J128: 2025-06
A129: Facture | B129: 2025-06-13 | C129: 718.02 | D129: Cercle vert | E129: Meudon | F129: Sekou | G129: juin-2025 | H129: 13-juin | I129: 2025 | J129: 2025-06
A130: Facture | B130: 2025-06-13 | C130: 297.24 | D130: Jocean | E130: Meudon | F130: Sekou | G130: =TEXT(B130,"mmm-aaaa") -> juin-2025 | H130: =TEXT(B130,"jj-mmm") -> 13-juin | I130: =YEAR(B130) -> 2025 | J130: =TEXT(B130,"aaaa-mm") -> 2025-06
A131: Facture | B131: 2025-06-13 | C131: 185.1 | D131: Jardin dAlbert | E131: Meudon | F131: Sekou | G131: juin-2025 | H131: 13-juin | I131: 2025 | J131: 2025-06
A132: Facture | B132: 2025-06-12 | C132: 123.66 | D132: La ferme Alexandre | E132: Meudon | F132: Sekou | G132: juin-2025 | H132: 12-juin | I132: 2025 | J132: 2025-06
A133: Facture | B133: 2025-06-12 | C133: 694.72 | D133: La ferme Alexandre | E133: Meudon | F133: Sekou | G133: juin-2025 | H133: 12-juin | I133: 2025 | J133: 2025-06
A134: Facture | B134: 2025-06-12 | C134: 821.61 | D134: Jardin dAlbert | E134: Meudon | F134: Sekou | G134: juin-2025 | H134: 12-juin | I134: 2025 | J134: 2025-06
A135: Facture | B135: 2025-06-11 | C135: 1086.42 | D135: Chassineau | E135: Meudon | F135: Sekou | G135: juin-2025 | H135: 11-juin | I135: 2025 | J135: 2025-06
A136: Facture | B136: 2025-06-11 | C136: 947.41 | D136: Gamme des Chefs | E136: Meudon | F136: Sekou | G136: juin-2025 | H136: 11-juin | I136: 2025 | J136: 2025-06
A137: Facture | B137: 2025-06-11 | C137: 242.08 | D137: Jocean | E137: Meudon | F137: Sekou | G137: juin-2025 | H137: 11-juin | I137: 2025 | J137: 2025-06
A138: Facture | B138: 2025-06-11 | C138: 669 | D138: Jardin dAlbert | E138: Meudon | F138: Sekou | G138: juin-2025 | H138: 11-juin | I138: 2025 | J138: 2025-06
A139: Facture | B139: 2025-06-10 | C139: 817.63 | D139: Gamme des Chefs | E139: Meudon | F139: Sekou | G139: juin-2025 | H139: 10-juin | I139: 2025 | J139: 2025-06
A140: Facture | B140: 2025-06-10 | C140: 655.4 | D140: Atout Sucre | E140: Meudon | F140: Sekou | G140: juin-2025 | H140: 10-juin | I140: 2025 | J140: 2025-06
A141: Facture | B141: 2025-06-09 | C141: 897.48 | D141: La ferme Alexandre | E141: Meudon | F141: Sekou | G141: juin-2025 | H141: 09-juin | I141: 2025 | J141: 2025-06
A142: Facture | B142: 2025-06-08 | C142: 303.7 | D142: Jardin dAlbert | E142: Meudon | F142: Sekou | G142: juin-2025 | H142: 08-juin | I142: 2025 | J142: 2025-06
A143: Facture | B143: 2025-06-07 | C143: 208.14 | D143: Chassineau | E143: Meudon | F143: Sekou | G143: juin-2025 | H143: 07-juin | I143: 2025 | J143: 2025-06
A144: Facture | B144: 2025-06-07 | C144: 428.71 | D144: Marina sea food | E144: Meudon | F144: Sekou | G144: juin-2025 | H144: 07-juin | I144: 2025 | J144: 2025-06
A145: Facture | B145: 2025-06-07 | C145: 266.03 | D145: Jocean | E145: Meudon | F145: Sekou | G145: juin-2025 | H145: 07-juin | I145: 2025 | J145: 2025-06
A146: Facture | B146: 2025-06-06 | C146: 488.45 | D146: Chassineau | E146: Meudon | F146: Sekou | G146: juin-2025 | H146: 06-juin | I146: 2025 | J146: 2025-06
A147: Facture | B147: 2025-06-06 | C147: 622.66 | D147: Gamme des Chefs | E147: Meudon | F147: Sekou | G147: juin-2025 | H147: 06-juin | I147: 2025 | J147: 2025-06
A148: Facture | B148: 2025-06-06 | C148: 79.12 | D148: Cercle vert | E148: Meudon | F148: Sekou | G148: juin-2025 | H148: 06-juin | I148: 2025 | J148: 2025-06
A149: Facture | B149: 2025-06-06 | C149: 192.42 | D149: Cercle vert | E149: Meudon | F149: Sekou | G149: juin-2025 | H149: 06-juin | I149: 2025 | J149: 2025-06
A150: Facture | B150: 2025-06-06 | C150: 251.58 | D150: Jocean | E150: Meudon | F150: Sekou | G150: juin-2025 | H150: 06-juin | I150: 2025 | J150: 2025-06
A151: Facture | B151: 2025-06-06 | C151: 460.7 | D151: Jardin dAlbert | E151: Meudon | F151: Sekou | G151: juin-2025 | H151: 06-juin | I151: 2025 | J151: 2025-06
A152: Facture | B152: 2025-06-05 | C152: 1163 | D152: Chassineau | E152: Meudon | F152: Sekou | G152: juin-2025 | H152: 05-juin | I152: 2025 | J152: 2025-06
A153: Facture | B153: 2025-06-05 | C153: 539.17 | D153: La ferme Alexandre | E153: Meudon | F153: Sekou | G153: juin-2025 | H153: 05-juin | I153: 2025 | J153: 2025-06
A154: Facture | B154: 2025-06-05 | C154: 1015.57 | D154: Gamme des Chefs | E154: Meudon | F154: Sekou | G154: juin-2025 | H154: 05-juin | I154: 2025 | J154: 2025-06
A155: Facture | B155: 2025-06-05 | C155: 380.42 | D155: Marina sea food | E155: Meudon | F155: Sekou | G155: juin-2025 | H155: 05-juin | I155: 2025 | J155: 2025-06
A156: Facture | B156: 2025-06-05 | C156: 408.93 | D156: Cercle vert | E156: Meudon | F156: Sekou | G156: juin-2025 | H156: 05-juin | I156: 2025 | J156: 2025-06
A157: Facture | B157: 2025-06-05 | C157: 289.1 | D157: Jocean | E157: Meudon | F157: Sekou | G157: juin-2025 | H157: 05-juin | I157: 2025 | J157: 2025-06
A158: Facture | B158: 2025-06-05 | C158: 707.35 | D158: Jardin dAlbert | E158: Meudon | F158: Sekou | G158: juin-2025 | H158: 05-juin | I158: 2025 | J158: 2025-06
A159: Facture | B159: 2025-06-04 | C159: 1101.56 | D159: Chassineau | E159: Meudon | F159: Sekou | G159: juin-2025 | H159: 04-juin | I159: 2025 | J159: 2025-06
A160: Facture | B160: 2025-06-04 | C160: 665.7 | D160: Gamme des Chefs | E160: Meudon | F160: Sekou | G160: juin-2025 | H160: 04-juin | I160: 2025 | J160: 2025-06
A161: Facture | B161: 2025-06-04 | C161: 361.99 | D161: Jocean | E161: Meudon | F161: Sekou | G161: juin-2025 | H161: 04-juin | I161: 2025 | J161: 2025-06
A162: Facture | B162: 2025-06-04 | C162: 296.24 | D162: Jardin dAlbert | E162: Meudon | F162: Sekou | G162: juin-2025 | H162: 04-juin | I162: 2025 | J162: 2025-06
A163: Facture | B163: 2025-06-04 | C163: 177.66 | D163: Jardin dAlbert | E163: Meudon | F163: Sekou | G163: juin-2025 | H163: 04-juin | I163: 2025 | J163: 2025-06
A164: Facture | B164: 2025-06-03 | C164: 416.2 | D164: La ferme Alexandre | E164: Meudon | F164: Sekou | G164: juin-2025 | H164: 03-juin | I164: 2025 | J164: 2025-06
A165: Facture | B165: 2025-06-03 | C165: 204.37 | D165: La ferme Alexandre | E165: Meudon | F165: Sekou | G165: juin-2025 | H165: 03-juin | I165: 2025 | J165: 2025-06
A166: Facture | B166: 2025-06-03 | C166: 551.31 | D166: Jocean | E166: Meudon | F166: Sekou | G166: juin-2025 | H166: 03-juin | I166: 2025 | J166: 2025-06
A167: Facture | B167: 2025-06-03 | C167: 55.88 | D167: Cercle vert | E167: Meudon | F167: Sekou | G167: juin-2025 | H167: 03-juin | I167: 2025 | J167: 2025-06
A168: Facture | B168: 2025-06-03 | C168: 546.02 | D168: Jardin dAlbert | E168: Meudon | F168: Sekou | G168: juin-2025 | H168: 03-juin | I168: 2025 | J168: 2025-06
A169: Facture | B169: 2025-06-02 | C169: 1033.36 | D169: Chassineau | E169: Meudon | F169: Sekou | G169: juin-2025 | H169: 02-juin | I169: 2025 | J169: 2025-06
A170: Facture | B170: 2025-06-02 | C170: 592.48 | D170: La ferme Alexandre | E170: Meudon | F170: Sekou | G170: juin-2025 | H170: 02-juin | I170: 2025 | J170: 2025-06
A171: Facture | B171: 2025-06-02 | C171: 503.79 | D171: La ferme Alexandre | E171: Meudon | F171: Sekou | G171: juin-2025 | H171: 02-juin | I171: 2025 | J171: 2025-06
A172: Facture | B172: 2025-06-02 | C172: 704.22 | D172: Gamme des Chefs | E172: Meudon | F172: Sekou | G172: juin-2025 | H172: 02-juin | I172: 2025 | J172: 2025-06
A173: Facture | B173: 2025-06-02 | C173: 316.08 | D173: Marina sea food | E173: Meudon | F173: Sekou | G173: juin-2025 | H173: 02-juin | I173: 2025 | J173: 2025-06
A174: Facture | B174: 2025-06-01 | C174: 535.9 | D174: Jardin dAlbert | E174: Meudon | F174: Sekou | G174: juin-2025 | H174: 01-juin | I174: 2025 | J174: 2025-06
A175: Facture | B175: 2025-05-30 | C175: 174.59 | D175: Chassineau | E175: Meudon | F175: Sekou | G175: mai-2025 | H175: 30-mai | I175: 2025 | J175: 2025-05
A176: Facture | B176: 2025-05-28 | C176: 304.66 | D176: Chassineau | E176: Meudon | F176: Sekou | G176: mai-2025 | H176: 28-mai | I176: 2025 | J176: 2025-05
A177: Facture | B177: 2025-05-28 | C177: 626.32 | D177: Gamme des Chefs | E177: Meudon | F177: Sekou | G177: mai-2025 | H177: 28-mai | I177: 2025 | J177: 2025-05
A178: Facture | B178: 2025-05-28 | C178: 417.3 | D178: Jardin dAlbert | E178: Meudon | F178: Sekou | G178: mai-2025 | H178: 28-mai | I178: 2025 | J178: 2025-05
A179: Facture | B179: 2025-05-26 | C179: 410.96 | D179: Chassineau | E179: Meudon | F179: Sekou | G179: mai-2025 | H179: 26-mai | I179: 2025 | J179: 2025-05
A180: Facture | B180: 2025-05-26 | C180: 193.67 | D180: Jardin dAlbert | E180: Meudon | F180: Sekou | G180: mai-2025 | H180: 26-mai | I180: 2025 | J180: 2025-05
A181: Facture | B181: 2025-05-24 | C181: 121.66 | D181: Chassineau | E181: Meudon | F181: Sekou | G181: mai-2025 | H181: 24-mai | I181: 2025 | J181: 2025-05
A182: Facture | B182: 2025-05-24 | C182: 478.1 | D182: La ferme Alexandre | E182: Meudon | F182: Sekou | G182: mai-2025 | H182: 24-mai | I182: 2025 | J182: 2025-05
A183: Facture | B183: 2025-05-24 | C183: 155.85 | D183: La ferme Alexandre | E183: Meudon | F183: Sekou | G183: mai-2025 | H183: 24-mai | I183: 2025 | J183: 2025-05
A184: Facture | B184: 2025-05-24 | C184: 166.74 | D184: Jocean | E184: Meudon | F184: Sekou | G184: mai-2025 | H184: 24-mai | I184: 2025 | J184: 2025-05
A185: Facture | B185: 2025-05-23 | C185: 246.53 | D185: Chassineau | E185: Meudon | F185: Sekou | G185: mai-2025 | H185: 23-mai | I185: 2025 | J185: 2025-05
A186: Facture | B186: 2025-05-23 | C186: 231.03 | D186: Gamme des Chefs | E186: Meudon | F186: Sekou | G186: mai-2025 | H186: 23-mai | I186: 2025 | J186: 2025-05
A187: Facture | B187: 2025-05-23 | C187: 183.86 | D187: Marina sea food | E187: Meudon | F187: Sekou | G187: mai-2025 | H187: 23-mai | I187: 2025 | J187: 2025-05
A188: Facture | B188: 2025-05-23 | C188: 347.54 | D188: Cercle vert | E188: Meudon | F188: Sekou | G188: mai-2025 | H188: 23-mai | I188: 2025 | J188: 2025-05
A189: Facture | B189: 2025-05-23 | C189: 177.84 | D189: Atout Sucre | E189: Meudon | F189: Sekou | G189: mai-2025 | H189: 23-mai | I189: 2025 | J189: 2025-05
A190: Facture | B190: 2025-05-22 | C190: 263.99 | D190: Chassineau | E190: Meudon | F190: Sekou | G190: mai-2025 | H190: 22-mai | I190: 2025 | J190: 2025-05
A191: Facture | B191: 2025-05-22 | C191: 128.7 | D191: Champerche | E191: Meudon | F191: Sekou | G191: mai-2025 | H191: 22-mai | I191: 2025 | J191: 2025-05
A192: Facture | B192: 2025-05-21 | C192: 484.44 | D192: Chassineau | E192: Meudon | F192: Sekou | G192: mai-2025 | H192: 21-mai | I192: 2025 | J192: 2025-05
A193: Facture | B193: 2025-05-21 | C193: 238.36 | D193: La ferme Alexandre | E193: Meudon | F193: Sekou | G193: mai-2025 | H193: 21-mai | I193: 2025 | J193: 2025-05
A194: Facture | B194: 2025-05-21 | C194: 348.8 | D194: Gamme des Chefs | E194: Meudon | F194: Sekou | G194: =TEXT(B194,"mmm-aaaa") -> mai-2025 | H194: =TEXT(B194,"jj-mmm") -> 21-mai | I194: =YEAR(B194) -> 2025 | J194: =TEXT(B194,"aaaa-mm") -> 2025-05
A195: Facture | B195: 2025-05-21 | C195: 226.51 | D195: Jocean | E195: Meudon | F195: Sekou | G195: mai-2025 | H195: 21-mai | I195: 2025 | J195: 2025-05
A196: Facture | B196: 2025-05-21 | C196: 493.22 | D196: Jardin dAlbert | E196: Meudon | F196: Sekou | G196: mai-2025 | H196: 21-mai | I196: 2025 | J196: 2025-05
A197: Facture | B197: 2025-05-20 | C197: 739.03 | D197: Chassineau | E197: Meudon | F197: Sekou | G197: mai-2025 | H197: 20-mai | I197: 2025 | J197: 2025-05
A198: Facture | B198: 2025-05-20 | C198: 261.98 | D198: La ferme Alexandre | E198: Meudon | F198: Sekou | G198: mai-2025 | H198: 20-mai | I198: 2025 | J198: 2025-05
A199: Facture | B199: 2025-05-20 | C199: 672.47 | D199: Gamme des Chefs | E199: Meudon | F199: Sekou | G199: mai-2025 | H199: 20-mai | I199: 2025 | J199: 2025-05
A200: Facture | B200: 2025-05-20 | C200: 509.66 | D200: Marina sea food | E200: Meudon | F200: Sekou | G200: mai-2025 | H200: 20-mai | I200: 2025 | J200: 2025-05
... 1999 more rows

Sheet Articles (hidden)
A1: Id_Article | B1: Fournisseur | C1: Désignations | D1: Matériel | E1: Prix | F1: Date_Maj
A2: 1111 | B2: Cafe Richard | C2: Breakfast Bop Bio | D2: 0 | E2: 11.4 | F2: 2024-08-05
A3: 535 | B3: Cafe Richard | C3: Cafe Grains Gourmet | D3: 0 | E3: 13.42 | F3: 2024-02-14
A4: 716 | B4: Cafe Richard | C4: Camomille Bio | D4: 0 | E4: 11.55 | F4: 2024-08-05
A5: 538 | B5: Cafe Richard | C5: Cappucino En Poudre | D5: 0 | E5: 11.6 | F5: 2024-02-14
A6: 1108 | B6: Cafe Richard | C6: Chocalat en poudre Richard 40 CACAO | D6: 0 | E6: 9.8 | F6: 2024-06-05
A7: 1107 | B7: Cafe Richard | C7: Chocolat en poudre 34% Cacao(Machines auto) | D7: 0 | E7: 10.8 | F7: 2024-08-05
A8: 536 | B8: Cafe Richard | C8: Chocolat en poudre Richard 40% de cacao. | D8: 0 | E8: 10.8 | F8: 2024-08-05
A9: 1139 | B9: Cafe Richard | C9: Confiture Andresy à l ancienne quatre fruits rouges. | D9: 0 | E9: 9.8 | F9: 2024-08-05
A10: 1127 | B10: Cafe Richard | C10: Confiture extra abricot 28g Wilkin & Sons | D10: 0 | E10: 16.6 | F10: 2024-08-05
A11: 1132 | B11: Cafe Richard | C11: Confiture extra cerise-griotte 28g Wilkin & Sons | D11: 0 | E11: 16.6 | F11: 2024-08-05
A12: 1131 | B12: Cafe Richard | C12: Confiture extra myrtille 28g Wilkin & Sons | D12: 0 | E12: 19.25 | F12: 2024-08-05
A13: 1128 | B13: Cafe Richard | C13: Confiture extra orange amère 28g Wilkin & Sons | D13: 0 | E13: 16.6 | F13: 2024-08-05
A14: 1136 | B14: Cafe Richard | C14: Confitures Andresy à l ancienne Abricot | D14: 0 | E14: 9.8 | F14: 2024-08-05
A15: 1138 | B15: Cafe Richard | C15: Confitures Andresy à l ancienne Fraise. | D15: 0 | E15: 9.8 | F15: 2024-08-05
A16: 1137 | B16: Cafe Richard | C16: Confitures Andresy à l ancienne orange amère | D16: 0 | E16: 9.8 | F16: 2024-08-05
A17: 1106 | B17: Cafe Richard | C17: Décafeiné DK Richard 50% Arabica | D17: 0 | E17: 12.95 | F17: 2024-08-05
A18: 537 | B18: Cafe Richard | C18: Decafeine en poudre | D18: 0 | E18: 10.8 | F18: 2024-02-14
A19: 1126 | B19: Cafe Richard | C19: Décaféiné lyophilisé bio & équitable 2g. | D19: 0 | E19: 28.3 | F19: 2024-08-05
A20: 1105 | B20: Cafe Richard | C20: Flor fina 80 | D20: 0 | E20: 26.5 | F20: 2024-08-05
A21: 1112 | B21: Cafe Richard | C21: Grand Earl Grey | D21: 0 | E21: 10.65 | F21: 2024-08-05
A22: 721 | B22: Cafe Richard | C22: Infusion verveine bio | D22: 0 | E22: 12.4 | F22: 2024-04-02
A23: 720 | B23: Cafe Richard | C23: Jardin de Darjeeling bio | D23: 0 | E23: 11.4 | F23: 2024-08-05
A24: 1140 | B24: Cafe Richard | C24: Ketchup 28 g en verre. | D24: 0 | E24: 22.3 | F24: 2024-08-05
A25: 1109 | B25: Cafe Richard | C25: Lait Demi-écrémé Régilait | D25: 0 | E25: 7.2 | F25: 2024-08-05
A26: 539 | B26: Cafe Richard | C26: Lait en Poudre | D26: 0 | E26: 8.35 | F26: 2024-02-14
A27: 20 | B27: Cafe Richard | C27: Mayonnaise 28 g en verre | D27: 0 | E27: 28.45 | F27: 2024-08-05
A28: 1134 | B28: Cafe Richard | C28: Miel 28g Wilkin & Sons. | D28: 0 | E28: 26.4 | F28: 2024-08-05
A29: 1135 | B29: Cafe Richard | C29: Miel de Sologne Jamet | D29: 0 | E29: 13 | F29: 2024-08-05
A30: 1141 | B30: Cafe Richard | C30: Moutarde 28 g en verre. | D30: 0 | E30: 28.45 | F30: 2024-08-05
A31: 1120 | B31: Cafe Richard | C31: Rêves enfantins avec fleurs d'hibiscus | D31: 0 | E31: 11.55 | F31: 2024-08-05
A32: 715 | B32: Cafe Richard | C32: Rooibos aux epices | D32: 0 | E32: 10.65 | F32: 2024-04-02
A33: 1124 | B33: Cafe Richard | C33: Stick sucralose Canderel | D33: 0 | E33: 14.9 | F33: 2024-08-05
A34: 1122 | B34: Cafe Richard | C34: Sucre buchette neutre 3 g | D34: 0 | E34: 9.9 | F34: 2024-08-05
A35: 1121 | B35: Cafe Richard | C35: Sucre buchette Richard rouge 3 G | D35: 0 | E35: 9.9 | F35: 2024-08-05
A36: 1123 | B36: Cafe Richard | C36: Sucre buchette roux bio Richard 3 G | D36: 0 | E36: 10.5 | F36: 2024-08-05
A37: 1125 | B37: Cafe Richard | C37: Sucre en morceau Richard 2,5 g. | D37: 0 | E37: 16.4 | F37: 2024-08-05
A38: 1115 | B38: Cafe Richard | C38: Thé rouge Rooibos aux épices 4 sachets | D38: 0 | E38: 10.65 | F38: 2024-08-05
A39: 718 | B39: Cafe Richard | C39: THE vert a la menth bio | D39: 0 | E39: 247.2 | F39: 2024-04-02
A40: 1114 | B40: Cafe Richard | C40: Thé vert à la menthe Bio | D40: 0 | E40: 11.4 | F40: 2024-08-05
A41: 1113 | B41: Cafe Richard | C41: THE VERT AU JASMIN | D41: 0 | E41: 10.65 | F41: 2024-06-05
A42: 719 | B42: Cafe Richard | C42: The vert au jasmin | D42: 0 | E42: 10.65 | F42: 2024-08-05
A43: 717 | B43: Cafe Richard | C43: Tilleul Bio boite | D43: 0 | E43: 12.4 | F43: 2024-08-05
A44: 1116 | B44: Cafe Richard | C44: Verveine Bio | D44: 0 | E44: 11.55 | F44: 2024-08-05
A45: 1035 | B45: Cercle vert | C45: Abricot Moelleux | D45: 0 | E45: 14.15 | F45: 2024-04-14
A46: 1216 | B46: Cercle vert | C46: Agar Agar | D46: 0 | E46: 90.11 | F46: 2024-11-28
A47: 323 | B47: Cercle vert | C47: Amandes Brut Avec Peau | D47: 0 | E47: 15.3 | F47: 2024-02-23
A48: 35 | B48: Cercle vert | C48: Amandes effilees | D48: 0 | E48: 16.12 | F48: 2024-02-23
A49: 506 | B49: Cercle vert | C49: Anis Etoile Badiane | D49: 0 | E49: 74.97 | F49: 2024-02-23
A50: 111 | B50: Cercle vert | C50: Arôme café | D50: 0 | E50: 25.05 | F50: 2024-02-23
A51: 108 | B51: Cercle vert | C51: Arôme colorant bleu | D51: 0 | E51: 1.4 | F51: 2024-02-23
A52: 87 | B52: Cercle vert | C52: Arôme colorant rouge | D52: 0 | E52: 1.31 | F52: 2024-02-23
A53: 86 | B53: Cercle vert | C53: Arôme colorant vert | D53: 0 | E53: 1.31 | F53: 2024-02-23
A54: 1220 | B54: Cercle vert | C54: Arôme Patrelle | D54: 0 | E54: 21.2 | F54: 2024-11-28
A55: 114 | B55: Cercle vert | C55: Arôme pistache | D55: 0 | E55: 18.33 | F55: 2024-02-23
A56: 83 | B56: Cercle vert | C56: Arôme rose | D56: 0 | E56: 1.82 | F56: 2024-02-23
A57: 504 | B57: Cercle vert | C57: Arôme vanille | D57: 0 | E57: 29.24 | F57: 2024-02-23
A58: 501 | B58: Cercle vert | C58: Baking power | D58: 0 | E58: 9.45 | F58: 2024-02-23
A59: 500 | B59: Cercle vert | C59: Bavarois Framboise | D59: 0 | E59: 32.6 | F59: 2024-02-23
A60: 106 | B60: Cercle vert | C60: Bicarbonate | D60: 0 | E60: 4.63 | F60: 2024-02-23
A61: 100 | B61: Cercle vert | C61: Biscuit cuilliere | D61: 0 | E61: 19.7 | F61: 2024-02-23
A62: 1199 | B62: Cercle vert | C62: Bisque de homard | D62: 0 | E62: 5.47 | F62: 2024-09-02
A63: 76 | B63: Cercle vert | C63: Bombe de graisse | D63: 0 | E63: 9.45 | F63: 2024-02-23
A64: 1221 | B64: Cercle vert | C64: Bouillon legumes | D64: 0 | E64: 45 | F64: 2024-11-28
A65: 1213 | B65: Cercle vert | C65: Boulgour | D65: 0 | E65: 11.35 | F65: 2024-11-28
A66: 1211 | B66: Cercle vert | C66: Brisure Oreo | D66: 0 | E66: 5.05 | F66: 2024-11-28
A67: 1212 | B67: Cercle vert | C67: Bœuf bourguignon | D67: 0 | E67: 1.95 | F67: 2024-11-28
A68: 1215 | B68: Cercle vert | C68: Cannelle baton | D68: 0 | E68: 29.99 | F68: 2024-11-28
A69: 1222 | B69: Cercle vert | C69: Capres | D69: 0 | E69: 24.42 | F69: 2024-11-28
A70: 116 | B70: Cercle vert | C70: Cardamone | D70: 0 | E70: 25.54 | F70: 2024-02-23
A71: 37 | B71: Cercle vert | C71: Cereales Gourmandes Bio | D71: 0 | E71: 27.36 | F71: 2024-02-23
A72: 36 | B72: Cercle vert | C72: Cerise Amarena | D72: 0 | E72: 8.5 | F72: 2024-02-23
A73: 313 | B73: Cercle vert | C73: Cerneaux De Noix Invalides | D73: 0 | E73: 8.83 | F73: 2024-02-23
A74: 1092 | B74: Cercle vert | C74: Chapelure new | D74: 0 | E74: 1.8 | F74: 2024-05-03
A75: 468 | B75: Cercle vert | C75: Chocolat blanc Zephyr | D75: 0 | E75: 18.18 | F75: 2024-02-23
A76: 477 | B76: Cercle vert | C76: Chocolat noir 64 % | D76: 0 | E76: 38.72 | F76: 2024-02-23
A77: 490 | B77: Cercle vert | C77: Chocopops | D77: 0 | E77: 5.56 | F77: 2024-08-05
A78: 317 | B78: Cercle vert | C78: Confiture abricot 30G VER C:60 | D78: 0 | E78: 16.5 | F78: 2024-02-23
A79: 494 | B79: Cercle vert | C79: Confiture Abricot 350 gr | D79: 0 | E79: 3.47 | F79: 2024-02-23
A80: 319 | B80: Cercle vert | C80: Confiture Abricot Framboise 370 G | D80: 0 | E80: 4.19 | F80: 2024-02-23
A81: 315 | B81: Cercle vert | C81: Confiture abricot pot 1 kg | D81: 0 | E81: 5.23 | F81: 2024-02-23
A82: 203 | B82: Cercle vert | C82: Confiture Fraise 30 Gr | D82: 0 | E82: 16.5 | F82: 2024-02-23
A83: 204 | B83: Cercle vert | C83: Confiture Fraises 370 Gr | D83: 0 | E83: 2.88 | F83: 2024-02-23
A84: 314 | B84: Cercle vert | C84: Confiture Fraises 5 Kg | D84: 0 | E84: 67.1 | F84: 2024-02-23
A85: 1026 | B85: Cercle vert | C85: Confiture Framboise 30gr 60 pots | D85: 0 | E85: 55.08 | F85: 2024-04-12
A86: 217 | B86: Cercle vert | C86: Confiture framboise pot 1 kg | D86: 0 | E86: 5.23 | F86: 2024-02-23
A87: 522 | B87: Cercle vert | C87: Confiture griotte 30 g carton 60 | D87: 0 | E87: 16.5 | F87: 2024-02-23
A88: 318 | B88: Cercle vert | C88: Confiture Griotte 370 Gr | D88: 0 | E88: 4.85 | F88: 2024-02-23
A89: 524 | B89: Cercle vert | C89: Confiture Myrtille 30 gr 60 pot | D89: 0 | E89: 20.9 | F89: 2024-02-23
A90: 316 | B90: Cercle vert | C90: Confiture Peche 30 Gr *60 Pot | D90: 0 | E90: 16.5 | F90: 2024-02-23
A91: 495 | B91: Cercle vert | C91: Confiture peche 350 gr | D91: 0 | E91: 4.19 | F91: 2024-02-23
A92: 528 | B92: Cercle vert | C92: Coquillette 5KG | D92: 0 | E92: 10.6 | F92: 2024-02-23
A93: 197 | B93: Cercle vert | C93: Cornflakes. Sachet de 500 Gr. | D93: 0 | E93: 3.92 | F93: 2024-08-05
A94: 312 | B94: Cercle vert | C94: Cornichon 5/1 boite | D94: 0 | E94: 8.47 | F94: 2024-02-23
A95: 113 | B95: Cercle vert | C95: Creme balsamique 500 gr | D95: 0 | E95: 6.22 | F95: 2024-02-23
A96: 1223 | B96: Cercle vert | C96: Crème de marron | D96: 0 | E96: 5.18 | F96: 2024-11-28
A97: 179 | B97: Cercle vert | C97: Creme vinaigre pomme 500gr | D97: 0 | E97: 8.08 | F97: 2024-02-23
A98: 1218 | B98: Cercle vert | C98: Cumin | D98: 0 | E98: 73.75 | F98: 2024-11-28
A99: 320 | B99: Cercle vert | C99: Curcuma Moulu S:1Kg | D99: 0 | E99: 9.19 | F99: 2024-02-23
A100: 302 | B100: Cercle vert | C100: Curry 440G | D100: 0 | E100: 7.94 | F100: 2024-02-23
A101: 1204 | B101: Cercle vert | C101: Dragibus | D101: 0 | E101: 14 | F101: 2024-09-02
A102: 75 | B102: Cercle vert | C102: Egraine vegetale 1.750 kg | D102: 0 | E102: 42.99 | F102: 2024-02-23
A103: 118 | B103: Cercle vert | C103: Epautre kg | D103: 0 | E103: 7.41 | F103: 2024-02-23
A104: 1206 | B104: Cercle vert | C104: Farfalles | D104: 0 | E104: 18.78 | F104: 2024-09-02
A105: 465 | B105: Cercle vert | C105: Farine De Ble T55 | D105: 0 | E105: 6.15 | F105: 2024-02-23
A106: 1104 | B106: Cercle vert | C106: FIGUE | D106: 0 | E106: 3.95 | F106: 2024-05-31
A107: 84 | B107: Cercle vert | C107: Fleur d oranger | D107: 0 | E107: 4.48 | F107: 2024-02-23
A108: 512 | B108: Cercle vert | C108: Fleur de sel | D108: 0 | E108: 6.91 | F108: 2024-02-23
A109: 519 | B109: Cercle vert | C109: Flocon d avoine | D109: 0 | E109: 2.98 | F109: 2024-08-05
A110: 299 | B110: Cercle vert | C110: Fond Brun Lie | D110: 0 | E110: 7.71 | F110: 2024-02-23
A111: 464 | B111: Cercle vert | C111: Fond Brun Veau Lie Prem B:600G | D111: 0 | E111: 22.25 | F111: 2024-02-23
A112: 80 | B112: Cercle vert | C112: Fond veau liquide | D112: 0 | E112: 25.24 | F112: 2024-02-23
A113: 1203 | B113: Cercle vert | C113: Fraise Tagada | D113: 0 | E113: 10.37 | F113: 2024-09-02
A114: 1027 | B114: Cercle vert | C114: Fumet Poisson Liquide | D114: 0 | E114: 25.24 | F114: 2024-04-12
A115: 119 | B115: Cercle vert | C115: Fumet poisson poudre | D115: 0 | E115: 8.7 | F115: 2024-02-23
A116: 79 | B116: Cercle vert | C116: Fumet volaille | D116: 0 | E116: 7.13 | F116: 2024-02-23
A117: 513 | B117: Cercle vert | C117: Garam masala | D117: 0 | E117: 10.3 | F117: 2024-02-23
A118: 112 | B118: Cercle vert | C118: Gelatine feuille | D118: 0 | E118: 25.04 | F118: 2024-02-23
A119: 509 | B119: Cercle vert | C119: Gelatine poisson poudre | D119: 0 | E119: 59.45 | F119: 2024-02-23
A120: 1219 | B120: Cercle vert | C120: Gingembre poudre | D120: 0 | E120: 68.62 | F120: 2024-11-28
A121: 82 | B121: Cercle vert | C121: Graine de chia | D121: 0 | E121: 13.27 | F121: 2024-02-23
A122: 96 | B122: Cercle vert | C122: Gros sel 5 kg | D122: 0 | E122: 6.73 | F122: 2024-02-23
A123: 115 | B123: Cercle vert | C123: Hibiscus | D123: 0 | E123: 1.61 | F123: 2024-02-23
A124: 515 | B124: Cercle vert | C124: Huile arachide | D124: 0 | E124: 29.87 | F124: 2024-02-23
A125: 310 | B125: Cercle vert | C125: Huile D'Olive | D125: 0 | E125: 49.19 | F125: 2024-02-23
A126: 33 | B126: Cercle vert | C126: Huile D'Olive Extra Vierge | D126: 0 | E126: 5.06 | F126: 2024-02-23
A127: 309 | B127: Cercle vert | C127: Huile de colza | D127: 0 | E127: 17.71 | F127: 2024-02-23
A128: 161 | B128: Cercle vert | C128: Huile de noisette | D128: 0 | E128: 8.33 | F128: 2024-02-23
A129: 727 | B129: Cercle vert | C129: Huile perf palm friteuse | D129: 0 | E129: 35.67 | F129: 2024-04-03
A130: 103 | B130: Cercle vert | C130: Huile sesame | D130: 0 | E130: 9.79 | F130: 2024-02-23
A131: 32 | B131: Cercle vert | C131: Huile tournesol | D131: 0 | E131: 3.2 | F131: 2024-02-23
A132: 207 | B132: Cercle vert | C132: Jus Pamplemousse | D132: 0 | E132: 11.41 | F132: 2024-02-23
A133: 206 | B133: Cercle vert | C133: Jus Pomme Bib | D133: 0 | E133: 25 | F133: 2024-02-23
A134: 205 | B134: Cercle vert | C134: Jus Tropicana | D134: 0 | E134: 25 | F134: 2024-02-23
A135: 34 | B135: Cercle vert | C135: Lasagne Lisca | D135: 0 | E135: 3.08 | F135: 2024-02-23
A136: 31 | B136: Cercle vert | C136: Lentille Corail Bio | D136: 0 | E136: 13.11 | F136: 2024-02-23
A137: 462 | B137: Cercle vert | C137: Lentilles Vertes | D137: 0 | E137: 13.78 | F137: 2024-02-23
A138: 77 | B138: Cercle vert | C138: Levure chimique | D138: 0 | E138: 9.45 | F138: 2024-02-23
A139: 725 | B139: Cercle vert | C139: Linguine gragnano igp | D139: 0 | E139: 13.45 | F139: 2024-04-03
A140: 1036 | B140: Cercle vert | C140: Linguine Ultra Resist 5.5Kg | D140: 0 | E140: 27.05 | F140: 2024-04-14
A141: 1214 | B141: Cercle vert | C141: Litchi 4/4 | D141: 0 | E141: 2.85 | F141: 2024-11-28
A142: 476 | B142: Cercle vert | C142: Mais cuit | D142: 0 | E142: 2.5 | F142: 2024-02-23
A143: 1038 | B143: Cercle vert | C143: Mais Grains 4/4 | D143: 0 | E143: 1.9 | F143: 2024-04-14
A144: 326 | B144: Cercle vert | C144: Maïzena | D144: 0 | E144: 5.05 | F144: 2024-02-23
A145: 1200 | B145: Cercle vert | C145: Mars | D145: 0 | E145: 23.74 | F145: 2024-09-02
A146: 1202 | B146: Cercle vert | C146: Marshemallow | D146: 0 | E146: 10.25 | F146: 2024-09-02
A147: 427 | B147: Cercle vert | C147: Melange 3 Fruits | D147: 0 | E147: 65.61 | F147: 2024-02-23
A148: 38 | B148: Cercle vert | C148: Melange forestier seche | D148: 0 | E148: 16.21 | F148: 2024-02-23
A149: 507 | B149: Cercle vert | C149: Menthe douce poudre | D149: 0 | E149: 24.76 | F149: 2024-02-23
A150: 201 | B150: Cercle vert | C150: Miel Bonn Maman 30 Gr 60 Pot | D150: 0 | E150: 55.41 | F150: 2024-02-23
A151: 202 | B151: Cercle vert | C151: Miel Jamet crémeux. Pot de 1 Kg | D151: 0 | E151: 7.8 | F151: 2024-08-05
A152: 503 | B152: Cercle vert | C152: Mini baba au rhum | D152: 0 | E152: 49.29 | F152: 2024-02-23
A153: 1033 | B153: Cercle vert | C153: Miso Blanc | D153: 0 | E153: 3.52 | F153: 2024-04-14
A154: 107 | B154: Cercle vert | C154: Morilles sechees 400 gr | D154: 0 | E154: 247.1 | F154: 2024-02-23
A155: 196 | B155: Cercle vert | C155: Muesli Bio | D155: 0 | E155: 44.18 | F155: 2024-02-23
A156: 198 | B156: Cercle vert | C156: Muesli Bio Fruits | D156: 0 | E156: 44.18 | F156: 2024-02-23
A157: 460 | B157: Cercle vert | C157: Noisette Decortiquees S:1Kg | D157: 0 | E157: 24.64 | F157: 2024-02-23
A158: 39 | B158: Cercle vert | C158: Noix De Cajou 1 Kg | D158: 0 | E158: 14.59 | F158: 2024-02-23
A159: 74 | B159: Cercle vert | C159: Nouilles jap 3 kg | D159: 0 | E159: 9.46 | F159: 2024-02-23
A160: 322 | B160: Cercle vert | C160: Nutella 15 gr. Boite (120*15gr) | D160: 0 | E160: 25.16 | F160: 2024-08-05
A161: 511 | B161: Cercle vert | C161: Oignon frit | D161: 0 | E161: 10.1 | F161: 2024-02-23
A162: 510 | B162: Cercle vert | C162: Oignon grelot pickels | D162: 0 | E162: 9.2 | F162: 2024-02-23
A163: 1091 | B163: Cercle vert | C163: Oignons crispy | D163: 0 | E163: 6.15 | F163: 2024-05-03
A164: 40 | B164: Cercle vert | C164: Olive Noirs Entieres 5/1 | D164: 0 | E164: 7.56 | F164: 2024-02-23
A165: 41 | B165: Cercle vert | C165: Olive Verte Entieres 5/1 | D165: 0 | E165: 7.3 | F165: 2024-02-23
A166: 88 | B166: Cercle vert | C166: Paillete feuillantine 2.5 kg | D166: 0 | E166: 17.07 | F166: 2024-02-23
A167: 1207 | B167: Cercle vert | C167: Pain hot dog | D167: 0 | E167: 10.36 | F167: 2024-09-02
A168: 94 | B168: Cercle vert | C168: Paprika 800 gr | D168: 0 | E168: 10.69 | F168: 2024-02-23
A169: 93 | B169: Cercle vert | C169: Paprika doux fume 500 gr | D169: 0 | E169: 5.16 | F169: 2024-02-23
A170: 1039 | B170: Cercle vert | C170: Pate a tartiner Noix de coco | D170: 0 | E170: 6.27 | F170: 2024-04-14
A171: 1217 | B171: Cercle vert | C171: Pate arachide | D171: 0 | E171: 8.1 | F171: 2024-11-28
A172: 726 | B172: Cercle vert | C172: Penne rigate 3kg | D172: 0 | E172: 10.97 | F172: 2024-04-03
A173: 30 | B173: Cercle vert | C173: Penne Rigate Qs S:5Kg | D173: 0 | E173: 8.05 | F173: 2024-02-23
A174: 95 | B174: Cercle vert | C174: Petit oignons blanc vinaigre 5/1 | D174: 0 | E174: 8.94 | F174: 2024-02-23
A175: 502 | B175: Cercle vert | C175: Pignon de pin | D175: 0 | E175: 53.53 | F175: 2024-02-23
A176: 301 | B176: Cercle vert | C176: Poivre Gris Moulu S:1Kg | D176: 0 | E176: 10.35 | F176: 2024-02-23
A177: 101 | B177: Cercle vert | C177: Poivre noir grain kg | D177: 0 | E177: 18.69 | F177: 2024-02-23
A178: 471 | B178: Cercle vert | C178: Poivre Noir Grains S:1Kg | D178: 0 | E178: 16.29 | F178: 2024-02-23
A179: 199 | B179: Cercle vert | C179: Poivre Room | D179: 0 | E179: 11.03 | F179: 2024-02-23
A180: 117 | B180: Cercle vert | C180: Poivre tinut | D180: 0 | E180: 12.1 | F180: 2024-02-23
A181: 463 | B181: Cercle vert | C181: Polenta | D181: 0 | E181: 1.91 | F181: 2024-02-23
A182: 1085 | B182: Cercle vert | C182: Pop corn sale | D182: 0 | E182: 8.02 | F182: 2024-05-03
A183: 517 | B183: Cercle vert | C183: Poudre amande | D183: 0 | E183: 16.8 | F183: 2024-02-23
A184: 102 | B184: Cercle vert | C184: Poudre cacao kg | D184: 0 | E184: 6.22 | F184: 2024-02-23
A185: 89 | B185: Cercle vert | C185: Poudre cannelle kg | D185: 0 | E185: 11.44 | F185: 2024-02-23
A186: 505 | B186: Cercle vert | C186: Poudre coco | D186: 0 | E186: 5.9 | F186: 2024-02-23
A187: 104 | B187: Cercle vert | C187: Poudre muscade 450 gr | D187: 0 | E187: 34.31 | F187: 2024-02-23
A188: 327 | B188: Cercle vert | C188: Pralines Roses Enrobees P:1Kg | D188: 0 | E188: 23.47 | F188: 2024-02-23
A189: 81 | B189: Cercle vert | C189: Pruneaux de denoyaute | D189: 0 | E189: 13.91 | F189: 2024-02-23
A190: 105 | B190: Cercle vert | C190: Quatres epices kg | D190: 0 | E190: 8.55 | F190: 2024-02-23
A191: 78 | B191: Cercle vert | C191: Quinoa kg | D191: 0 | E191: 6.82 | F191: 2024-02-23
A192: 304 | B192: Cercle vert | C192: Quinoa Sol S:4Kg | D192: 0 | E192: 30.94 | F192: 2024-02-23
A193: 1037 | B193: Cercle vert | C193: Raisin blond | D193: 0 | E193: 6.58 | F193: 2024-04-14
A194: 73 | B194: Cercle vert | C194: Risotto 2.5 kg | D194: 0 | E194: 9.46 | F194: 2024-02-23
A195: 1093 | B195: Cercle vert | C195: Risotto arborio | D195: 0 | E195: 3.27 | F195: 2024-05-03
A196: 466 | B196: Cercle vert | C196: Riz basmati sac 5 kg | D196: 0 | E196: 25.64 | F196: 2024-02-23
A197: 303 | B197: Cercle vert | C197: Riz rond | D197: 0 | E197: 22.47 | F197: 2024-02-23
A198: 72 | B198: Cercle vert | C198: Riz thai 5 kg | D198: 0 | E198: 13.98 | F198: 2024-02-23
A199: 42 | B199: Cercle vert | C199: Sauce Huitre | D199: 0 | E199: 7.21 | F199: 2024-02-23
A200: 43 | B200: Cercle vert | C200: Sauce soja sale kikoman | D200: 0 | E200: 11.45 | F200: 2024-02-23
... 493 more rows

Sheet BD_Inventaire (hidden)
A1: Nom | B1: Désignations | C1: Matériel | D1: Référence | E1: Quantité | F1: Prix | G1: Date | H1: Total | I1: Année
A2: Cercle vert | B2: Flakes Epautre | C2: Non | D2: 1338 | E2: 9 | F2: 0.42 | G2: 2024-01-01 | H2: =E2*F2 -> 3.78 | I2: =YEAR(G2) -> 2024
A3: Cercle vert | B3: Lentilles Vertes S:5Kg | C3: Non | D3: 1063 | E3: 4 | F3: 13.78 | G3: 2024-01-01 | H3: 55.12 | I3: 2024
A4: Cercle vert | B4: Lentille Corail Bio | C4: Non | D4: 1062 | E4: 3 | F4: 13.11 | G4: 2024-01-01 | H4: 39.33 | I4: 2024
A5: Le Delas | B5: Pastis | C5: Non | D5: 1244 | E5: 3 | F5: 3.5 | G5: 2024-01-01 | H5: 10.5 | I5: 2024
A6: Le Delas | B6: Vinaigre Blanc 10 L | C6: Non | D6: 1313 | E6: 3 | F6: 8.08 | G6: 2024-01-01 | H6: 24.24 | I6: 2024
A7: Le Delas | B7: Huile Olive L | C7: Non | D7: 1206 | E7: 0.5 | F7: 12.81 | G7: 2024-01-01 | H7: 6.405 | I7: 2024
A8: Le Delas | B8: Basilic sec | C8: Non | D8: 1123 | E8: 2 | F8: 4.81 | G8: 2024-01-01 | H8: 9.62 | I8: 2024
A9: Le Delas | B9: Bleuet | C9: Non | D9: 1127 | E9: 4 | F9: 15.91 | G9: 2024-01-01 | H9: 63.64 | I9: 2024
A10: Le Delas | B10: Chamallows | C10: Non | D10: 1141 | E10: 2 | F10: 10.25 | G10: 2024-01-01 | H10: 20.5 | I10: 2024
A11: Le Delas | B11: Cajun | C11: Non | D11: 1135 | E11: 8 | F11: 13.67 | G11: 2024-01-01 | H11: 109.36 | I11: 2024
A12: Le Delas | B12: Safran | C12: Non | D12: 1281 | E12: 1 | F12: 5.77 | G12: 2024-01-01 | H12: 5.77 | I12: 2024
A13: Le Delas | B13: Graine moutarde | C13: Non | D13: 1190 | E13: 1 | F13: 5.22 | G13: 2024-01-01 | H13: 5.22 | I13: 2024
A14: Le Delas | B14: Graines De Chia | C14: Non | D14: 1191 | E14: 1 | F14: 10.43 | G14: 2024-01-01 | H14: 10.43 | I14: 2024
A15: Le Delas | B15: Maïzena | C15: Non | D15: 1219 | E15: 1 | F15: 6.33 | G15: 2024-01-01 | H15: 6.33 | I15: 2024
A16: Le Delas | B16: Herbes De Provence | C16: Non | D16: 1199 | E16: 2.5 | F16: 6.26 | G16: 2024-01-01 | H16: 15.65 | I16: 2024
A17: Le Delas | B17: Graine cafe sucre | C17: Non | D17: 1188 | E17: 0.5 | F17: 12.95 | G17: 2024-01-01 | H17: 6.475 | I17: 2024
A18: Le Delas | B18: Graine de courge | C18: Non | D18: 1189 | E18: 1 | F18: 7.96 | G18: 2024-01-01 | H18: 7.96 | I18: 2024
A19: Le Delas | B19: Moutarde Sceau 1 Kg | C19: Non | D19: 1230 | E19: 6 | F19: 5.41 | G19: 2024-01-01 | H19: 32.46 | I19: 2024
A20: Le Delas | B20: Miel | C20: Non | D20: 1226 | E20: 5 | F20: 12.93 | G20: 2024-01-01 | H20: 64.65 | I20: 2024
A21: Le Delas | B21: Melange de legumes | C21: Non | D21: 1221 | E21: 6 | F21: 8.81 | G21: 2024-01-01 | H21: 52.86 | I21: 2024
A22: Le Delas | B22: Maïs pop corn kg | C22: Non | D22: 1218 | E22: 4 | F22: 2.34 | G22: 2024-01-01 | H22: 9.36 | I22: 2024
A23: Le Delas | B23: Gelatine Feuille | C23: Non | D23: 1183 | E23: 1.5 | F23: 43 | G23: 2024-01-01 | H23: 64.5 | I23: 2024
A24: Le Delas | B24: Gelatine feuille halal | C24: Non | D24: 1184 | E24: 0.5 | F24: 29.46 | G24: 2024-01-01 | H24: 14.73 | I24: 2024
A25: Cercle vert | B25: Paillete feuillantine 2.5 kg | C25: Non | D25: 2089 | E25: 1 | F25: 17.07 | G25: 2024-01-01 | H25: 17.07 | I25: 2024
A26: Cercle vert | B26: Swette Chili Sauce 600Ml | C26: Non | D26: 1101 | E26: 9 | F26: 7.24 | G26: 2024-01-01 | H26: 65.16 | I26: 2024
A27: Cercle vert | B27: Sauce teriyaki | C27: Non | D27: 1094 | E27: 2 | F27: 11.06 | G27: 2024-01-01 | H27: 22.12 | I27: 2024
A28: Cercle vert | B28: Sauce Sriracha 455 ml | C28: Non | D28: 1092 | E28: 5 | F28: 4.23 | G28: 2024-01-01 | H28: 21.15 | I28: 2024
A29: Le Delas | B29: Chapelure Blanche | C29: Non | D29: 1142 | E29: 3 | F29: 3.7 | G29: 2024-01-01 | H29: 11.1 | I29: 2024
A30: Le Delas | B30: Chips Appalam | C30: Non | D30: 1145 | E30: 6 | F30: 1.49 | G30: 2024-01-01 | H30: 8.94 | I30: 2024
A31: Le Delas | B31: Couscous sans gluten kg | C31: Non | D31: 1155 | E31: 1.5 | F31: 3.85 | G31: 2024-01-01 | H31: 5.775 | I31: 2024
A32: Le Delas | B32: Colombo | C32: Non | D32: 1150 | E32: 3 | F32: 8.68 | G32: 2024-01-01 | H32: 26.04 | I32: 2024
A33: Le Delas | B33: Feuille De Riz | C33: Non | D33: 1171 | E33: 0.5 | F33: 2.65 | G33: 2024-01-01 | H33: 1.325 | I33: 2024
A34: Le Delas | B34: Feuille Mori | C34: Non | D34: 1172 | E34: 1 | F34: 15.33 | G34: 2024-01-01 | H34: 15.33 | I34: 2024
A35: Le Delas | B35: Pâte Aromatique À La Pistache - Cresco - Pot De 1 Kg | C35: Non | D35: 1248 | E35: 1 | F35: 45.93 | G35: 2024-01-01 | H35: 45.93 | I35: 2024
A36: Le Delas | B36: Agar Agar | C36: Non | D36: 1112 | E36: 2 | F36: 90.37 | G36: 2024-01-01 | H36: 180.74 | I36: 2024
A37: Le Delas | B37: Bicarbonate | C37: Non | D37: 1124 | E37: 1 | F37: 4.63 | G37: 2024-01-01 | H37: 4.63 | I37: 2024
A38: Le Delas | B38: Cardamone | C38: Non | D38: 1139 | E38: 0.5 | F38: 10.72 | G38: 2024-01-01 | H38: 5.36 | I38: 2024
A39: Le Delas | B39: Amande Effilee | C39: Non | D39: 1114 | E39: 2 | F39: 10.8 | G39: 2024-01-01 | H39: 21.6 | I39: 2024
A40: Le Delas | B40: CHAPELURE JAPONAIS PANKO S:1KG | C40: Non | D40: 1144 | E40: 7 | F40: 5.39 | G40: 2024-01-01 | H40: 37.73 | I40: 2024
A41: Le Delas | B41: Bombe À Graisse | C41: Non | D41: 1129 | E41: 3 | F41: 6.07 | G41: 2024-01-01 | H41: 18.21 | I41: 2024
A42: Le Delas | B42: Boulgour | C42: Non | D42: 1131 | E42: 5 | F42: 2.35 | G42: 2024-01-01 | H42: 11.75 | I42: 2024
A43: Le Delas | B43: Gelifiant | C43: Non | D43: 1185 | E43: 1 | F43: 45.68 | G43: 2024-01-01 | H43: 45.68 | I43: 2024
A44: Le Delas | B44: Lecithine | C44: Non | D44: 1212 | E44: 1 | F44: 59.6 | G44: 2024-01-01 | H44: 59.6 | I44: 2024
A45: Le Delas | B45: Levure Chimique | C45: Non | D45: 1215 | E45: 2 | F45: 5.37 | G45: 2024-01-01 | H45: 10.74 | I45: 2024
A46: Le Delas | B46: Fondant Extra Blanc 1kg | C46: Non | D46: 1176 | E46: 1 | F46: 5.36 | G46: 2024-01-01 | H46: 5.36 | I46: 2024
A47: Le Delas | B47: Gavotte | C47: Non | D47: 1182 | E47: 2 | F47: 29.62 | G47: 2024-01-01 | H47: 59.24 | I47: 2024
A48: Le Delas | B48: Arome Vanille | C48: Non | D48: 1119 | E48: 4 | F48: 8.56 | G48: 2024-01-01 | H48: 34.24 | I48: 2024
A49: Le Delas | B49: Oignons Frits 1 kg | C49: Non | D49: 1240 | E49: 5 | F49: 6.28 | G49: 2024-01-01 | H49: 31.4 | I49: 2024
A50: Le Delas | B50: Vin blanc 10 l | C50: Non | D50: 1309 | E50: 1 | F50: 12.8 | G50: 2024-01-01 | H50: 12.8 | I50: 2024
A51: Le Delas | B51: Vin Rouge 10 L | C51: Non | D51: 1311 | E51: 3 | F51: 19.2 | G51: 2024-01-01 | H51: 57.6 | I51: 2024
A52: Le Delas | B52: Quinoa Noir | C52: Non | D52: 1270 | E52: 1 | F52: 9.68 | G52: 2024-01-01 | H52: 9.68 | I52: 2024
A53: Le Delas | B53: Quinoa Rouge | C53: Non | D53: 1271 | E53: 1 | F53: 9.03 | G53: 2024-01-01 | H53: 9.03 | I53: 2024
A54: Le Delas | B54: Quinoa Blanc | C54: Non | D54: 1269 | E54: 2 | F54: 7.25 | G54: 2024-01-01 | H54: 14.5 | I54: 2024
A55: Le Delas | B55: Lasagne 500 gr garofalo | C55: Non | D55: 1211 | E55: 3 | F55: 3.08 | G55: 2024-01-01 | H55: 9.24 | I55: 2024
A56: Le Delas | B56: Lasagne 500 gr Barilla | C56: Non | D56: 1210 | E56: 3 | F56: 11.63 | G56: 2024-01-01 | H56: 34.89 | I56: 2024
A57: Le Delas | B57: Risotto | C57: Non | D57: 1277 | E57: 8 | F57: 3.79 | G57: 2024-01-01 | H57: 30.32 | I57: 2024
A58: Le Delas | B58: Sel Gros | C58: Non | D58: 1296 | E58: 1.5 | F58: 5.9 | G58: 2024-01-01 | H58: 8.85 | I58: 2024
A59: Le Delas | B59: Sel Fin | C59: Non | D59: 1294 | E59: 1.5 | F59: 5.44 | G59: 2024-01-01 | H59: 8.16 | I59: 2024
A60: Le Delas | B60: Sesame Blanc | C60: Non | D60: 1297 | E60: 2 | F60: 8.12 | G60: 2024-01-01 | H60: 16.24 | I60: 2024
A61: Le Delas | B61: Sesame Noir | C61: Non | D61: 1298 | E61: 1 | F61: 8.97 | G61: 2024-01-01 | H61: 8.97 | I61: 2024
A62: Le Delas | B62: Sel Fleur 500 Gr | C62: Non | D62: 1295 | E62: 8 | F62: 15.17 | G62: 2024-01-01 | H62: 121.36 | I62: 2024
A63: Le Delas | B63: Piment Espelette | C63: Non | D63: 1254 | E63: 1 | F63: 20.28 | G63: 2024-01-01 | H63: 20.28 | I63: 2024
A64: Le Delas | B64: Fond Volaille Lie | C64: Non | D64: 1175 | E64: 1 | F64: 13.53 | G64: 2024-01-01 | H64: 13.53 | I64: 2024
A65: Le Delas | B65: Fumet De Poisson | C65: Non | D65: 1181 | E65: 1 | F65: 14.58 | G65: 2024-01-01 | H65: 14.58 | I65: 2024
A66: Gamme des Chefs | B66: Piment Doux 700 Ml | C66: Non | D66: 1657 | E66: 3 | F66: 18.8 | G66: 2024-01-01 | H66: =E66*F66 -> 56.4 | I66: =YEAR(G66) -> 2024
A67: Gamme des Chefs | B67: Petit Pois Cajou 700 Ml | C67: Non | D67: 1655 | E67: 4 | F67: 18.8 | G67: 2024-01-01 | H67: 75.2 | I67: 2024
A68: Le Delas | B68: Litchi | C68: Non | D68: 2191 | E68: 4 | F68: 2.68 | G68: 2024-01-01 | H68: 10.72 | I68: 2024
A69: Le Delas | B69: Sucre Glace | C69: Non | D69: 1301 | E69: 5 | F69: 2.19 | G69: 2024-01-01 | H69: 10.95 | I69: 2024
A70: Gamme des Chefs | B70: Poire sauvage | C70: Non | D70: 1659 | E70: 1 | F70: 33.89 | G70: 2024-01-01 | H70: 33.89 | I70: 2024
A71: Gamme des Chefs | B71: Poudre Cannelle | C71: Non | D71: 1661 | E71: 1 | F71: 55.53 | G71: 2024-01-01 | H71: 55.53 | I71: 2024
A72: Gamme des Chefs | B72: Poudre Combawa | C72: Non | D72: 1662 | E72: 0.8 | F72: 60.07 | G72: 2024-01-01 | H72: 48.056 | I72: 2024
A73: Gamme des Chefs | B73: Poudre Gingembre | C73: Non | D73: 1663 | E73: 0.9 | F73: 55.53 | G73: 2024-01-01 | H73: 49.977 | I73: 2024
A74: Le Delas | B74: Vanille Gousse | C74: Non | D74: 1307 | E74: 7 | F74: 16.99 | G74: 2024-01-01 | H74: 118.93 | I74: 2024
A75: Le Delas | B75: Poivre noir grains 167 gr | C75: Non | D75: 1257 | E75: 2 | F75: 17.68 | G75: 2024-01-01 | H75: 35.36 | I75: 2024
A76: Le Delas | B76: Penne | C76: Non | D76: 1252 | E76: 12 | F76: 3.49 | G76: 2024-01-01 | H76: 41.88 | I76: 2024
A77: Le Delas | B77: Macaroni | C77: Non | D77: 1216 | E77: 5 | F77: 2.37 | G77: 2024-01-01 | H77: 11.85 | I77: 2024
A78: Cercle vert | B78: Sirop D Erable | C78: Non | D78: 1367 | E78: 3 | F78: 21.3 | G78: 2024-01-01 | H78: 63.9 | I78: 2024
A79: Le Delas | B79: Raz Hanouti | C79: Non | D79: 1274 | E79: 3 | F79: 8.03 | G79: 2024-01-01 | H79: 24.09 | I79: 2024
A80: Le Delas | B80: Curry Madras | C80: Non | D80: 1161 | E80: 3 | F80: 8.47 | G80: 2024-01-01 | H80: 25.41 | I80: 2024
A81: Le Delas | B81: Saindoux 250 gr | C81: Non | D81: 1154 | E81: 15 | F81: 3.71 | G81: 2024-01-01 | H81: 55.65 | I81: 2024
A82: Le Delas | B82: Riz rond | C82: Non | D82: 1279 | E82: 5 | F82: 2.64 | G82: 2024-01-01 | H82: 13.2 | I82: 2024
A83: Le Delas | B83: Poudre muscade | C83: Non | D83: 1264 | E83: 1 | F83: 28.66 | G83: 2024-01-01 | H83: 28.66 | I83: 2024
A84: Le Delas | B84: Melange Zaatar | C84: Non | D84: 1225 | E84: 3 | F84: 4.8 | G84: 2024-01-01 | H84: 14.4 | I84: 2024
A85: Le Delas | B85: Sauce Soja Sucre | C85: Non | D85: 1286 | E85: 7 | F85: 9.26 | G85: 2024-01-01 | H85: 64.82 | I85: 2024
A86: Le Delas | B86: Sauce Soja Sale | C86: Non | D86: 1285 | E86: 9 | F86: 6.82 | G86: 2024-01-01 | H86: 61.38 | I86: 2024
A87: Le Delas | B87: Huile Noisette | C87: Non | D87: 1204 | E87: 4 | F87: 8.05 | G87: 2024-01-01 | H87: 32.2 | I87: 2024
A88: Le Delas | B88: Creme Balsamique L | C88: Non | D88: 1156 | E88: 1 | F88: 8.08 | G88: 2024-01-01 | H88: 8.08 | I88: 2024
A89: Le Delas | B89: Ail Poudre | C89: Non | D89: 1113 | E89: 1 | F89: 11.88 | G89: 2024-01-01 | H89: 11.88 | I89: 2024
A90: Le Delas | B90: Poudre Amande | C90: Non | D90: 1260 | E90: 1.5 | F90: 9.9 | G90: 2024-01-01 | H90: 14.85 | I90: 2024
A91: Le Delas | B91: Chapelure Brune P:1Kg | C91: Non | D91: 1143 | E91: 1 | F91: 3.62 | G91: 2024-01-01 | H91: 3.62 | I91: 2024
A92: Le Delas | B92: Poudre Speculos | C92: Non | D92: 1266 | E92: 3 | F92: 6.4 | G92: 2024-01-01 | H92: 19.2 | I92: 2024
A93: Le Delas | B93: Codineige 5 Kg | C93: Non | D93: 1148 | E93: 2.5 | F93: 41.16 | G93: 2024-01-01 | H93: 102.9 | I93: 2024
A94: Le Delas | B94: Curcumine | C94: Non | D94: 1160 | E94: 2 | F94: 7.87 | G94: 2024-01-01 | H94: 15.74 | I94: 2024
A95: Le Delas | B95: Tandoori | C95: Non | D95: 1303 | E95: 0.5 | F95: 5.69 | G95: 2024-01-01 | H95: 2.845 | I95: 2024
A96: Asian Marché | B96: Banane Blosom | C96: Non | D96: 6553 | E96: 1 | F96: 3.21 | G96: 2024-01-01 | H96: 3.21 | I96: 2024
A97: Asian Marché | B97: Fruit Du Jacquier | C97: Non | D97: 6554 | E97: 30 | F97: 2.8 | G97: 2024-01-01 | H97: 84 | I97: 2024
A98: Le Delas | B98: Tomate Concentre | C98: Non | D98: 1305 | E98: 6 | F98: 3.69 | G98: 2024-01-01 | H98: 22.14 | I98: 2024
A99: Le Delas | B99: Olive Vert Sceau | C99: Non | D99: 1242 | E99: 2 | F99: 10.92 | G99: 2024-01-01 | H99: 21.84 | I99: 2024
A100: Le Delas | B100: Olive noir | C100: Non | D100: 1241 | E100: 1 | F100: 10.92 | G100: 2024-01-01 | H100: 10.92 | I100: 2024
A101: Le Delas | B101: Pois Chiche | C101: Non | D101: 1256 | E101: 10 | F101: 1.53 | G101: 2024-01-01 | H101: 15.3 | I101: 2024
A102: Le Delas | B102: Tomate Pellee | C102: Non | D102: 1306 | E102: 8 | F102: 7.64 | G102: 2024-01-01 | H102: 61.12 | I102: 2024
A103: Le Delas | B103: Escargot | C103: Non | D103: 1166 | E103: 3 | F103: 16.98 | G103: 2024-01-01 | H103: 50.94 | I103: 2024
A104: Le Delas | B104: Pate A Sucre Blanche 1 kg | C104: Non | D104: 1246 | E104: 0.5 | F104: 16.58 | G104: 2024-01-01 | H104: 8.29 | I104: 2024
A105: Le Delas | B105: Praline Rose | C105: Non | D105: 1267 | E105: 1 | F105: 23.47 | G105: 2024-01-01 | H105: 23.47 | I105: 2024
A106: Cercle vert | B106: Poivre Noir Grains S:1Kg | C106: Non | D106: 1077 | E106: 1 | F106: 16.29 | G106: 2024-01-01 | H106: 16.29 | I106: 2024
A107: Le Delas | B107: Huile Noix | C107: Non | D107: 1205 | E107: 2 | F107: 7.45 | G107: 2024-01-01 | H107: 14.9 | I107: 2024
A108: Le Delas | B108: Framboise lyophilisee | C108: Non | D108: 1179 | E108: 0.5 | F108: 25.25 | G108: 2024-01-01 | H108: 12.625 | I108: 2024
A109: Cercle vert | B109: Figue Moelleux | C109: Non | D109: 1337 | E109: 1 | F109: 51.15 | G109: 2024-01-01 | H109: 51.15 | I109: 2024
A110: Le Delas | B110: Cerneaux De Noix | C110: Non | D110: 1140 | E110: 2 | F110: 12.85 | G110: 2024-01-01 | H110: 25.7 | I110: 2024
A111: Le Delas | B111: Poudre Cacao | C111: Non | D111: 1261 | E111: 1 | F111: 8.42 | G111: 2024-01-01 | H111: 8.42 | I111: 2024
A112: Cercle vert | B112: Riz basmati sac 5 kg | C112: Non | D112: 2705 | E112: 3 | F112: 25.64 | G112: 2024-01-01 | H112: 76.92 | I112: 2024
A113: Cercle vert | B113: Chocolat noir 65 % | C113: Non | D113: 2100 | E113: 4 | F113: 38.72 | G113: 2024-01-01 | H113: 154.88 | I113: 2024
A114: Cercle vert | B114: Chocolat blanc 29 % | C114: Non | D114: 2706 | E114: 3 | F114: 42.71 | G114: 2024-01-01 | H114: 128.13 | I114: 2024
A115: Cercle vert | B115: Poudre noisettes 1 kg | C115: Non | D115: 1070 | E115: 1 | F115: 24.64 | G115: 2024-01-01 | H115: 24.64 | I115: 2024
A116: Cercle vert | B116: Noix De Cajou 1 Kg | C116: Non | D116: 1071 | E116: 2 | F116: 14.59 | G116: 2024-01-01 | H116: 29.18 | I116: 2024
A117: Cercle vert | B117: Raisin blond golden 1 kg | C117: Non | D117: 2708 | E117: 4 | F117: 6.58 | G117: 2024-01-01 | H117: 26.32 | I117: 2024
A118: Cercle vert | B118: Raisin noir 1 kg | C118: Non | D118: 2709 | E118: 4 | F118: 6.88 | G118: 2024-01-01 | H118: 27.52 | I118: 2024
A119: Cercle vert | B119: Polenta mais 1 kg | C119: Non | D119: 2710 | E119: 18 | F119: 1.91 | G119: 2024-01-01 | H119: 34.38 | I119: 2024
A120: Cercle vert | B120: Sucre poudre 1 kg | C120: Non | D120: 2111 | E120: 14 | F120: 2.17 | G120: 2024-01-01 | H120: 30.38 | I120: 2024
A121: Cercle vert | B121: Farine t55 Sac | C121: Non | D121: 2711 | E121: 2 | F121: 29.63 | G121: 2024-01-01 | H121: 59.26 | I121: 2024
A122: Cercle vert | B122: Vinaigre balsamique 2 L | C122: Non | D122: 2712 | E122: 1 | F122: 19.46 | G122: 2024-01-01 | H122: 19.46 | I122: 2024
A123: Cercle vert | B123: Sucre cassonnade kg | C123: Non | D123: 2112 | E123: 6 | F123: 3.55 | G123: 2024-01-01 | H123: 21.3 | I123: 2024
A124: Cercle vert | B124: Huile Colzac / Olive 5L | C124: Non | D124: 2699 | E124: 6 | F124: 26.63 | G124: 2024-01-01 | H124: 159.78 | I124: 2024
A125: Cercle vert | B125: Fumet poisson poudre | C125: Non | D125: 2120 | E125: 2 | F125: 8.7 | G125: 2024-01-01 | H125: 17.4 | I125: 2024
A126: Cercle vert | B126: Herbes de provence 185 gr | C126: Non | D126: 2079 | E126: 3 | F126: 7.13 | G126: 2024-01-01 | H126: 21.39 | I126: 2024
A127: Cercle vert | B127: Fond Brun Lié Boite | C127: Non | D127: 1050 | E127: 2 | F127: 7.71 | G127: 2024-01-01 | H127: 15.42 | I127: 2024
A128: Cercle vert | B128: Bouillon de légumes | C128: Non | D128: 2713 | E128: 2 | F128: 7.96 | G128: 2024-01-01 | H128: 15.92 | I128: 2024
A129: Cercle vert | B129: Sauce wok sesame | C129: Non | D129: 2723 | E129: 4 | F129: 17.86 | G129: 2024-01-01 | H129: 71.44 | I129: 2024
A130: Le Delas | B130: Vermicelle | C130: Non | D130: 1308 | E130: 10 | F130: 2.98 | G130: 2024-01-01 | H130: =E130*F130 -> 29.8 | I130: =YEAR(G130) -> 2024
A131: Le Delas | B131: Pate d arachide | C131: Non | D131: 2724 | E131: 4 | F131: 3.86 | G131: 2024-01-01 | H131: 15.44 | I131: 2024
A132: Cercle vert | B132: Huile tournesol | C132: Non | D132: 1059 | E132: 12 | F132: 3.2 | G132: 2024-01-01 | H132: 38.4 | I132: 2024
A133: Cercle vert | B133: Vinaigre de cidre 75 cl | C133: Non | D133: 2704 | E133: 6 | F133: 2.25 | G133: 2024-01-01 | H133: 13.5 | I133: 2024
A134: Le Delas | B134: Huile olive bison 5L | C134: Non | D134: 2725 | E134: 1 | F134: 68.65 | G134: 2024-01-01 | H134: 68.65 | I134: 2024
A135: Le Delas | B135: Huile tournesol bidon 5 L | C135: Non | D135: 2714 | E135: 3 | F135: 14.45 | G135: 2024-01-01 | H135: 43.35 | I135: 2024
A136: Cercle vert | B136: Biscuit cuilliere | C136: Non | D136: 2102 | E136: 1 | F136: 19.7 | G136: 2024-01-01 | H136: 19.7 | I136: 2024
A137: Cercle vert | B137: Chapelure dorée | C137: Non | D137: 2715 | E137: 2 | F137: 15.57 | G137: 2024-01-01 | H137: 31.14 | I137: 2024
A138: Cercle vert | B138: Creme de marron | C138: Non | D138: 2717 | E138: 5 | F138: 11.03 | G138: 2024-01-01 | H138: 55.15 | I138: 2024
A139: Commandes Internet | B139: Biryani | C139: Non | D139: 2719 | E139: 1 | F139: 2.99 | G139: 2024-01-01 | H139: 2.99 | I139: 2024
A140: Commandes Internet | B140: Cumin | C140: Non | D140: 2721 | E140: 1 | F140: 1.2 | G140: 2024-01-01 | H140: 1.2 | I140: 2024
A141: Commandes Internet | B141: Curry indien | C141: Non | D141: 2720 | E141: 1 | F141: 4.5 | G141: 2024-01-01 | H141: 4.5 | I141: 2024
A142: Cercle vert | B142: Mais cuit | C142: Non | D142: 2722 | E142: 12 | F142: 2.5 | G142: 2024-01-01 | H142: 30 | I142: 2024
A143: Cercle vert | B143: Ketchup pot 34ml room carton 80 pot | C143: Non | D143: 1342 | E143: 2 | F143: 69.82 | G143: 2024-01-01 | H143: 139.64 | I143: 2024
A144: Cercle vert | B144: Mayonnaise pot 33 ml room carton 80 pot | C144: Non | D144: 1345 | E144: 2 | F144: 67.43 | G144: 2024-01-01 | H144: 134.86 | I144: 2024
A145: Cercle vert | B145: Moutarde 33 ml room | C145: Non | D145: 1351 | E145: 1.5 | F145: 75.64 | G145: 2024-01-01 | H145: 113.46 | I145: 2024
A146: Cercle vert | B146: Confiture Fraise 30 Gr | C146: Non | D146: 1329 | E146: 2 | F146: 16.5 | G146: 2024-01-01 | H146: 33 | I146: 2024
A147: Cercle vert | B147: Confiture abricot Verre C:60 | C147: Non | D147: 1325 | E147: 1.5 | F147: 16.5 | G147: 2024-01-01 | H147: 24.75 | I147: 2024
A148: Cercle vert | B148: Miel pot 1 kg | C148: Non | D148: 1348 | E148: 1 | F148: 34.89 | G148: 2024-01-01 | H148: 34.89 | I148: 2024
A149: Surgelés | B149: Brioche Praline | C149: Non | D149: 1913 | E149: 1.5 | F149: 45.22 | G149: 2024-01-01 | H149: 67.83 | I149: 2024
A150: Surgelés | B150: Crepe | C150: Non | D150: 1936 | E150: 0.5 | F150: 19.77 | G150: 2024-01-01 | H150: 9.885 | I150: 2024
A151: Surgelés | B151: Mini Fondant Chocolat | C151: Non | D151: 1972 | E151: 0.5 | F151: 36.27 | G151: 2024-01-01 | H151: 18.135 | I151: 2024
A152: Surgelés | B152: Assortiments Macaron | C152: Non | D152: 1902 | E152: 0.5 | F152: 49.27 | G152: 2024-01-01 | H152: 24.635 | I152: 2024
A153: Surgelés | B153: Mini Beignets Fruits Rouge | C153: Non | D153: 1968 | E153: 0.5 | F153: 51.81 | G153: 2024-01-01 | H153: 25.905 | I153: 2024
A154: Surgelés | B154: Pancake | C154: Non | D154: 2000 | E154: 1.5 | F154: 24.32 | G154: 2024-01-01 | H154: 36.48 | I154: 2024
A155: Surgelés | B155: Mini Cannele | C155: Non | D155: 1971 | E155: 1 | F155: 31.74 | G155: 2024-01-01 | H155: 31.74 | I155: 2024
A156: Surgelés | B156: Mini Muffin Tt Gout | C156: Non | D156: 1973 | E156: 1 | F156: 17.62 | G156: 2024-01-01 | H156: 17.62 | I156: 2024
A157: Surgelés | B157: Cookie Double Chocolat | C157: Non | D157: 1931 | E157: 0.2 | F157: 32.69 | G157: 2024-01-01 | H157: 6.538 | I157: 2024
A158: Thé Noir Amour Gamme Bio | B158: The Noir Breakfast Intense | C158: Non | D158: 2044 | E158: 2 | F158: 25.35 | G158: 2024-01-01 | H158: 50.7 | I158: 2024
A159: Thé Noir Amour Gamme Bio | B159: The Noir Caramel | C159: Non | D159: 2045 | E159: 1 | F159: 31.96 | G159: 2024-01-01 | H159: 31.96 | I159: 2024
A160: Thé Noir Amour Gamme Bio | B160: The Noir Earl Grey Intense Bio | C160: Non | D160: 2047 | E160: 1 | F160: 29 | G160: 2024-01-01 | H160: 29 | I160: 2024
A161: Thé Noir Amour Gamme Bio | B161: The Noir Peche Abricot Intense Bio | C161: Non | D161: 2049 | E161: 1 | F161: 33.7 | G161: 2024-01-01 | H161: 33.7 | I161: 2024
A162: Thé Noir Amour Gamme Bio | B162: The Vert Chine Au Jasmin Intense Bio Bio | C162: Non | D162: 2056 | E162: 2 | F162: 31.96 | G162: 2024-01-01 | H162: 63.92 | I162: 2024
A163: Thé Noir Amour Gamme Bio | B163: The Vert 4 Fruits Rouges Intense Bio | C163: Non | D163: 2055 | E163: 0.5 | F163: 31.3 | G163: 2024-01-01 | H163: 15.65 | I163: 2024
A164: Thé Noir Amour Gamme Bio | B164: Camomille Bio | C164: Non | D164: 2039 | E164: 0.5 | F164: 32.14 | G164: 2024-01-01 | H164: 16.07 | I164: 2024
A165: Thé Noir Amour Gamme Bio | B165: Fleur Infusion Oceanic Bio | C165: Non | D165: 2040 | E165: 0.5 | F165: 31.78 | G165: 2024-01-01 | H165: 15.89 | I165: 2024
A166: Ségafredo | B166: Capsule Expresso 150 pc | C166: Non | D166: 1880 | E166: 1 | F166: 66.15 | G166: 2024-01-01 | H166: 66.15 | I166: 2024
A167: Ségafredo | B167: Capsule Deca 50 PC | C167: Non | D167: 1879 | E167: 1 | F167: 20.52 | G167: 2024-01-01 | H167: 20.52 | I167: 2024
A168: Ségafredo | B168: Sucre Buchette 1000 pc | C168: Non | D168: 1889 | E168: 0.5 | F168: 6.81 | G168: 2024-01-01 | H168: 3.405 | I168: 2024
A169: Ségafredo | B169: Sucre Morceaux | C169: Non | D169: 1890 | E169: 1.5 | F169: 13.1 | G169: 2024-01-01 | H169: 19.65 | I169: 2024
A170: Ségafredo | B170: Edulcorant Sz | C170: Non | D170: 1884 | E170: 1 | F170: 7.81 | G170: 2024-01-01 | H170: 7.81 | I170: 2024
A171: Ségafredo | B171: Deca 250 Gr Moulu | C171: Non | D171: 1883 | E171: 2 | F171: 7.74 | G171: 2024-01-01 | H171: 15.48 | I171: 2024
A172: Ségafredo | B172: Cacao Hot | C172: Non | D172: 1878 | E172: 5 | F172: 31 | G172: 2024-01-01 | H172: 155 | I172: 2024
A173: Ségafredo | B173: Lait Poudre 500Gr | C173: Non | D173: 1886 | E173: 18 | F173: 10.51 | G173: 2024-01-01 | H173: 189.18 | I173: 2024
A174: Ségafredo | B174: Chocolat Poudre instantane kg | C174: Non | D174: 1882 | E174: 2 | F174: 10.78 | G174: 2024-01-01 | H174: 21.56 | I174: 2024
A175: Ségafredo | B175: Alleanza Rainforest Kg Grain | C175: Non | D175: 1875 | E175: 18 | F175: 26.75 | G175: 2024-01-01 | H175: 481.5 | I175: 2024
A176: Ségafredo | B176: Napolitains | C176: Non | D176: 1887 | E176: 1 | F176: 29.1 | G176: 2024-01-01 | H176: 29.1 | I176: 2024
A177: Ségafredo | B177: The Darjeeling menthe | C177: Non | D177: 1893 | E177: 1 | F177: 36.43 | G177: 2024-01-01 | H177: 36.43 | I177: 2024
A178: Ségafredo | B178: The Earl Grey | C178: Non | D178: 1894 | E178: 3 | F178: 29 | G178: 2024-01-01 | H178: 87 | I178: 2024
A179: Ségafredo | B179: The Breakfast | C179: Non | D179: 1891 | E179: 2 | F179: 28.9 | G179: 2024-01-01 | H179: 57.8 | I179: 2024
A180: Ségafredo | B180: The GD Tea vert | C180: Non | D180: 1895 | E180: 2 | F180: 31.3 | G180: 2024-01-01 | H180: 62.6 | I180: 2024
A181: Ségafredo | B181: Infusion tilleul menthe bio | C181: Non | D181: 2184 | E181: 1 | F181: 28.69 | G181: 2024-01-01 | H181: 28.69 | I181: 2024
A182: Ségafredo | B182: The vert rave orient | C182: Non | D182: 2181 | E182: 4 | F182: 30.74 | G182: 2024-01-01 | H182: 122.96 | I182: 2024
A183: Patissier Arnaud | B183: Pause Tarte Exotique colis de 25 pieces | C183: Non | D183: 1849 | E183: 2 | F183: 14.75 | G183: 2024-01-01 | H183: 29.5 | I183: 2024
A184: Patissier Arnaud | B184: 1/2 cadre Vanille fraise | C184: Non | D184: 1829 | E184: 0.5 | F184: 52.11 | G184: 2024-01-01 | H184: 26.055 | I184: 2024
A185: Patissier Arnaud | B185: Pause pavlova colis de 25 | C185: Non | D185: 1848 | E185: 4 | F185: 14.75 | G185: 2024-01-01 | H185: 59 | I185: 2024
A186: Patissier Arnaud | B186: Ston et ecureuil colis de 12 pieces | C186: Non | D186: 1851 | E186: 2 | F186: 29.04 | G186: 2024-01-01 | H186: 58.08 | I186: 2024
A187: Patissier Arnaud | B187: Gamme Stone | C187: Non | D187: 1844 | E187: 8 | F187: 29.04 | G187: 2024-01-01 | H187: 232.32 | I187: 2024
A188: Patissier Arnaud | B188: Tarte 28 Cm | C188: Non | D188: 1852 | E188: 2 | F188: 21.97 | G188: 2024-01-01 | H188: 43.94 | I188: 2024
A189: Patissier Arnaud | B189: Choupinette framboise boite de 50 pieces | C189: Non | D189: 1834 | E189: 2 | F189: 27 | G189: 2024-01-01 | H189: 54 | I189: 2024
A190: Patissier Arnaud | B190: Choupinette Pistache colis de 50 pieces | C190: Non | D190: 1835 | E190: 2 | F190: 27 | G190: 2024-01-01 | H190: 54 | I190: 2024
A191: Patissier Arnaud | B191: Tartelette | C191: Non | D191: 1853 | E191: 1 | F191: 29.04 | G191: 2024-01-01 | H191: 29.04 | I191: 2024
A192: Patissier Arnaud | B192: Buche Noel 6 Pers | C192: Non | D192: 2194 | E192: 1 | F192: 15.02 | G192: 2024-01-01 | H192: 15.02 | I192: 2024
A193: Patissier Arnaud | B193: Tartelette citron meringuee colis de 12 | C193: Non | D193: 1854 | E193: 1 | F193: 29.04 | G193: 2024-01-01 | H193: 29.04 | I193: 2024
A194: Bon App Tarte | B194: Tarte Rhubarbe 22 Diam | C194: Non | D194: 1035 | E194: 5 | F194: 14.95 | G194: 2024-01-01 | H194: =E194*F194 -> 74.75 | I194: =YEAR(G194) -> 2024
A195: Bon App Tarte | B195: Tarte Poire Diam 22 Cm | C195: Non | D195: 1033 | E195: 2 | F195: 16.93 | G195: 2024-01-01 | H195: 33.86 | I195: 2024
A196: Surgelés | B196: Saku De Thon | C196: Non | D196: 2024 | E196: 1 | F196: 36.9 | G196: 2024-01-01 | H196: 36.9 | I196: 2024
A197: Surgelés | B197: Gambas 16/20 | C197: Non | D197: 1956 | E197: 5 | F197: 13.9 | G197: 2024-01-01 | H197: 69.5 | I197: 2024
A198: Surgelés | B198: Petit Pois | C198: Non | D198: 2006 | E198: 2.5 | F198: 2.41 | G198: 2024-01-01 | H198: 6.025 | I198: 2024
A199: Surgelés | B199: Pain Mie Plaque | C199: Non | D199: 1990 | E199: 1 | F199: 71.3 | G199: 2024-01-01 | H199: 71.3 | I199: 2024
A200: DS | B200: Boulette de bœuf | C200: Non | D200: 1528 | E200: 3 | F200: 8.85 | G200: 2024-01-01 | H200: 26.55 | I200: 2024
... 3552 more rows
